{"text_format":"1","workbook":"xlsx","n_sheets":12,"sheets":["Mode d'emploi","1. Vos objectifs","2.Coût salariaux","3.Activités par prestation","4.Durées des activités","5.Coût activité profession","6.ETP par activité","7.Coûts par prestation","8.ETP par prestation","9.Valorisation financière","10.Valorisation en ETP","11. Synthèse des coûts"],"not_rendered":{"charts":0,"images":0,"macros":1,"external_links":0,"defined_names":4,"comments":0,"pivot_tables":0},"unopened":[],"bounds":{"document_bytes":16777216,"sheet_cells":100000,"rows_first":2000,"rows_last":500,"rows_between":2000,"halvings":0,"cell_chars":16384,"cell_head_chars":4096},"cells_cut":0,"cells_raw":0,"read":"whole","date_system":"1900"}

{"sheet":"Mode d'emploi","index":0,"n_rows":0,"n_cols":0,"rows_kept":0,"cut":false,"hidden":false,"merged":[]}

{"sheet":"1. Vos objectifs","index":1,"n_rows":11,"n_cols":4,"rows_kept":11,"cut":false,"hidden":false,"merged":[[8,0,8,1],[9,0,10,0],[2,0,2,1],[3,0,3,1],[4,0,4,1],[5,0,6,0],[7,0,7,1]]}
[null,null,null,"Entrez ici vos prévisions ou objectifs\n⬇️"]
[]
["Les prestations fonction ressource",null,"Unité d'œuvre","Objectif quantifié"]
["Information Documentation",null,"Demande d'information",110]
["Sensibilisation",null,"Séance",17]
["Formation ","Cas 1 \nESMS NON OF ","La demande de formation sous-traitée",3]
[null,"Cas 2 \nESMS OF","Séance",1]
["Appui aux pratiques",null,"Séance",30]
["Appui-conseil",null,"Séance",18]
["Observation-évaluation partagée","Cas 1 \n Sous forme d'accueil temporaire ","Journée d'accueil temporaire",10]
[null,"Cas 2\nAu sein de l'ESMS requérant ","Session"]

{"sheet":"2.Coût salariaux","index":2,"n_rows":9,"n_cols":11,"rows_kept":9,"cut":false,"hidden":false,"merged":[[0,0,0,10]]}
["Coûts salariaux par profession en euros"]
["Convention collective 1966"]
["Fonction","Ancienneté","Indice du poste","Indemnité de sujétion spéciale","Valeur du point","Salaire brut","Coût salarial mensuel","Coût salarial annuel","Coût salarial à la minute","Coût salarial à l'heure","Durée annuelle du travail"]
["Educateur technique spécialisé","Après 20 ans",679,8.48E-2,3.82,{"$f":"C4*(1+D4)*E4","v":2813.732544},{"$f":"F4*1.4","v":3939.2255615999998},{"$f":"G4*12","v":47270.706739199995},{"$f":"Tableau1[[#This Row],[Coût salarial mensuel]]/151.67/60","v":0.43287241616667765},{"$f":"Tableau1[[#This Row],[Coût salarial à la minute]]*60","v":25.972344970000659},1607]
["Infirmière","Après 20 ans",679,8.48E-2,3.82,{"$f":"C5*(1+D5)*E5","v":2813.732544},3939.2255615999998,{"$f":"G5*12","v":47270.706739199995},{"$f":"Tableau1[[#This Row],[Coût salarial mensuel]]/151.67/60","v":0.43287241616667765},{"$f":"Tableau1[[#This Row],[Coût salarial à la minute]]*60","v":25.972344970000659},1607]
["Médecin spécialiste qualifié","Après 21 ans",2024,0,3.82,{"$f":"C6*(1+D6)*E6","v":7731.6799999999994},10824.351999999999,129892.22399999999,{"$f":"Tableau1[[#This Row],[Coût salarial mensuel]]/151.67/60","v":1.1894630887233248},{"$f":"Tableau1[[#This Row],[Coût salarial à la minute]]*60","v":71.367785323399488},1607]
["Psychologue (cadre niveau 1, classe 1)","Après 21 ans",1052.7,0,3.82,4021.3139999999999,5629.8395999999993,67558.075199999992,{"$f":"Tableau1[[#This Row],[Coût salarial mensuel]]/151.67/60","v":0.61865009560229445},{"$f":"Tableau1[[#This Row],[Coût salarial à la minute]]*60","v":37.119005736137666},1607]
["Chef de service (référent FR) (cadre 2, niveau 2)","Après 21 ans",931.7,0,3.82,3559.0940000000001,4982.7316000000001,59792.779200000004,{"$f":"Tableau1[[#This Row],[Coût salarial mensuel]]/151.67/60","v":0.54754088921122623},{"$f":"Tableau1[[#This Row],[Coût salarial à la minute]]*60","v":32.852453352673571},1607]
["Agent administratif principal","Après 20 ans",498,8.48E-2,3.82,2063.680128,2889.1521791999999,34669.826150399997,{"$f":"Tableau1[[#This Row],[Coût salarial mensuel]]/151.67/60","v":0.31748227282916858},{"$f":"Tableau1[[#This Row],[Coût salarial à la minute]]*60","v":19.048936369750116},1607]

{"sheet":"3.Activités par prestation","index":3,"n_rows":32,"n_cols":9,"rows_kept":32,"cut":false,"hidden":false,"merged":[[0,0,0,8],[2,6,3,6],[2,7,2,8],[2,0,3,0],[2,1,3,1],[2,2,3,2],[2,3,2,4],[2,5,3,5],[1,0,1,8]]}
["Activités composant chacune des prestations de la fonction ressource"]
["Entrer 1 dans les cases correspondant aux activités incluses dans la prestation. Laisser vide si l'activité n'entre pas dans la prestation."]
["Prestations de la fonction ressource / Activités ","Information Documentation","Sensibilisation","Formation ",null,"Appui aux pratiques","Appui-conseil","Observation-évaluation partagée"]
[null,null,null,"Cas 1 \nESMS NON OF ","Cas 2 \nESMS OF",null,null,"Cas 1 \n Sous forme d'accueil temporaire ","Cas 2\nAu sein de l'ESMS requérant "]
["Réceptionner une demande par formulaire, mail ou téléphone",1,1,1,1,1,1,1,1]
["Enregistrer la demande : demandeur, objet de la sollicitation ",1,1,1,1,1,1,1,1]
["Apporter une réponse en termes d'information (téléphone, mail) ",1]
["Adresser une documentation (par mail) ",1]
["Conduire un entretien téléphonique avec le requérant",null,1,1,1,1,1,1,1]
["Recueillir sur un formulaire ad'hoc les éléments utiles et réaliser une première analyse ",null,1,1,1,1,1,1,1]
["Analyser/décrypter la demande simple en équipe ",null,1]
["Analyser/décrypter la demande complexe en équipe ",null,null,null,1,1,1,null,1]
["Formuler une proposition par téléphone / mail auprès du requérant  / Tracer la réponse",null,1,null,1,1,1,null,1]
["Planifier l'intervention : professionnels intervenants et calendrier ",null,1,null,1,1,1]
["Formaliser le programme d’intervention",null,1,null,1,1,1]
["Faire valider le programme d’intervention par le requérant ",null,1,null,1,1,1]
["Rédiger une convention d’intervention",null,1,null,1,1,1,null,1]
["Préparer l’accueil de la personne (emploi du temps, service…)"]
["Préparer l'intervention (logistique, supports, outils…)",null,null,null,1,1,1,null,1]
["Transmettre la demande à l’organisme de formation en capacité d’assurer / de porter la formation. ",null,null,1]
["Déterminer avec l'Organisme de formation porteur les modalités de partenariat (délégation, mise à disposition d'intervenants)",null,null,1]
["S'assurer de la réalisation de l'action de formation par l'Organisme de formation sollicité ",null,null,1]
["Animer/Délivrer la prestation de sensibilisation",null,1]
["Animer/Délivrer la prestation d'appui aux pratiques",null,null,null,null,1]
["Animer/Délivrer la prestation d'appui-conseil",null,null,null,null,null,1]
["Animer/délivrer la prestation de formation",null,null,null,1]
["Animer/Délivrer la prestation d'observation",null,null,null,null,null,null,null,1]
["Rédiger un bilan, une synthèse de l'évaluation pluridisciplinaire  ",null,null,null,null,null,null,null,1]
["Formaliser des préconisations ",null,null,null,null,null,1,1,1]
["Évaluer la prestation \"à chaud\" ",null,1,null,null,null,1,null,1]
["Évaluer un suivi de l'intervention à 3 / 6 mois",null,null,1,1,1,1,1,1]
["Suivre l'activité RH et budgétaire de façon analytique ",null,1,1,1,1,1,1,1]

{"sheet":"4.Durées des activités","index":4,"n_rows":31,"n_cols":9,"rows_kept":31,"cut":false,"hidden":false,"merged":[[0,0,0,7],[1,1,1,7]]}
["Durée standard des activités par profession, en minutes, hors transport"]
[null,"Entrer dans chaque case la durée estimée en minutes de réalisation de l'activité par le professionnel concerné."]
["Activités","Educateur","Infirmière","Médecin spécialisé","Psychologue","Référent FR","Administratif","Durée totale en minutes","Commentaires"]
["Réceptionner une demande par formulaire, mail ou téléphone",null,null,null,null,null,5,{"$f":"SUM(B4:G4)","v":5}]
["Enregistrer la demande : demandeur, objet de la sollicitation a nature de la sollicitation  ",null,null,null,null,null,5,{"$f":"SUM(B5:G5)","v":5}]
["Apporter une réponse en termes d'information (téléphone, mail) ",null,null,null,null,15,null,15]
["Adresser une documentation (par mail) ",null,null,null,null,null,5,5]
["Conduire un entretien téléphonique avec le requérant",null,null,null,null,30,null,30]
["Recueillir sur un formulaire ad'hoc les éléments utiles et réaliser une première analyse ",null,null,null,null,60,null,60]
["Analyser/décrypter la demande simple en équipe ",10,10,null,null,30,null,50,"Temps de coordination du référent qui va aller questionner les IDE et éducateurs le cas échéant sur l'objet de la sensibilsation."]
["Analyser/décrypter la demande complexe en équipe ",45,45,45,45,90,10,{"$f":"SUM(B11:G11)","v":280}," 1h30h du référent, en lien avec éducateur, IDE et médécin qui consacrent chacun 45 minutes dont une partie en réunion de concertation."]
["Formuler une proposition par téléphone / mail auprès du requérant  / Tracer la réponse",null,null,null,null,15,5,20]
["Planifier l'intervention : professionnels intervenants et calendrier ",null,null,null,null,15,null,15]
["Formaliser le programme d’intervention",null,null,null,null,45,null,45]
["Faire valider le programme d’intervention par le requérant ",null,null,null,null,null,20,20]
["Rédiger une convention d’intervention ",null,null,null,null,45,30,75]
["Préparer l’accueil de la personne ",null,null,null,null,60,null,60]
["Préparer l'intervention (logistique, supports, outils…)",60,60,null,null,20,null,140]
["Transmettre la demande à l’organisme de formation en capacité d’assurer / de porter la formation. ",null,null,null,null,30,15,45]
["Déterminer avec l'Organisme de formation porteur les modalités de partenariat (délégation, mise à disposition d'intervenants)",null,null,null,null,30,null,30]
["S'assurer de la réalisation de l'action de formation par l'Organisme de formation sollicité ",null,null,null,null,null,30,30]
["Animer/Délivrer la prestation de sensibilisation",120,120,null,null,null,null,240,"2 h par séance, en binôme"]
["Animer/Délivrer la prestation d'appui aux pratiques",120,120,null,null,null,null,240,"1 séance de 2 heures, en binome, et 1 heure de préparation au total (comptabilisée dans l'activité Préparer l'intervention)"]
["Animer/Délivrer la prestation d'appui-conseil",120,120,null,null,null,null,{"$f":"SUM(B24:G24)","v":240},"1 séance de 2 heures, en binome, et 1 heure de préparation au tota (comptabilisée dans l'activité Préparer l'intervention)"]
["Animer/Délivrer la prestation de formation",420,420,null,null,null,null,840]
["Animer/Délivrer la prestation d'observation",180,180,null,null,null,null,{"$f":"SUM(B26:G26)","v":360}]
["Rédiger un bilan, une synthèse de l'évaluation pluridisciplinaire  ",60,60,60,60,60,30,330]
["Formaliser des préconisations ",45,45,null,null,30,null,120]
["Évaluer la prestation \"à chaud\" ",null,null,null,null,30,null,30]
["Évaluer un suivi de l'intervention à 3 / 6 mois",null,null,null,null,90,null,90]
["Suivre l'activité RH et budgétaire de façon analytique ",null,null,null,null,null,60,60]

{"sheet":"5.Coût activité profession","index":5,"n_rows":31,"n_cols":8,"rows_kept":31,"cut":false,"hidden":false,"merged":[[0,0,0,7]]}
["Coût standard des activités par profession en euros"]
[]
["Activités","Educateur","Infirmière","Médecin spécialisé","Psychologue","Référent FR","Administratif","Coût unitaire de la prestation"]
["Réceptionner une demande par formulaire, mail ou téléphone",{"$f":"'4.Durées des activités'!B4*'2.Coût salariaux'!$I$4","v":0},{"$f":"'4.Durées des activités'!C4*'2.Coût salariaux'!$I$5","v":0},{"$f":"'4.Durées des activités'!D4*'2.Coût salariaux'!$I$6","v":0},{"$f":"'4.Durées des activités'!E4*'2.Coût salariaux'!$I$7","v":0},{"$f":"'4.Durées des activités'!F4*'2.Coût salariaux'!$I$8","v":0},{"$f":"'4.Durées des activités'!G4*'2.Coût salariaux'!$I$9","v":1.5874113641458429},{"$f":"SUM(B4:G4)","v":1.5874113641458429}]
["Enregistrer la demande : demandeur, objet de la sollicitation a nature de la sollicitation  ",{"$f":"'4.Durées des activités'!B5*'2.Coût salariaux'!$I$4","v":0},{"$f":"'4.Durées des activités'!C5*'2.Coût salariaux'!$I$5","v":0},{"$f":"'4.Durées des activités'!D5*'2.Coût salariaux'!$I$6","v":0},{"$f":"'4.Durées des activités'!E5*'2.Coût salariaux'!$I$7","v":0},{"$f":"'4.Durées des activités'!F5*'2.Coût salariaux'!$I$8","v":0},{"$f":"'4.Durées des activités'!G5*'2.Coût salariaux'!$I$9","v":1.5874113641458429},{"$f":"SUM(B5:G5)","v":1.5874113641458429}]
["Apporter une réponse en termes d'information (téléphone, mail) ",{"$f":"'4.Durées des activités'!B6*'2.Coût salariaux'!$I$4","v":0},{"$f":"'4.Durées des activités'!C6*'2.Coût salariaux'!$I$5","v":0},{"$f":"'4.Durées des activités'!D6*'2.Coût salariaux'!$I$6","v":0},{"$f":"'4.Durées des activités'!E6*'2.Coût salariaux'!$I$7","v":0},{"$f":"'4.Durées des activités'!F6*'2.Coût salariaux'!$I$8","v":8.2131133381683927},{"$f":"'4.Durées des activités'!G6*'2.Coût salariaux'!$I$9","v":0},8.2131133381683927]
["Adresser une documentation (par mail) ",{"$f":"'4.Durées des activités'!B7*'2.Coût salariaux'!$I$4","v":0},{"$f":"'4.Durées des activités'!C7*'2.Coût salariaux'!$I$5","v":0},{"$f":"'4.Durées des activités'!D7*'2.Coût salariaux'!$I$6","v":0},{"$f":"'4.Durées des activités'!E7*'2.Coût salariaux'!$I$7","v":0},{"$f":"'4.Durées des activités'!F7*'2.Coût salariaux'!$I$8","v":0},{"$f":"'4.Durées des activités'!G7*'2.Coût salariaux'!$I$9","v":1.5874113641458429},1.5874113641458429]
["Conduire un entretien téléphonique avec le requérant",{"$f":"'4.Durées des activités'!B8*'2.Coût salariaux'!$I$4","v":0},{"$f":"'4.Durées des activités'!C8*'2.Coût salariaux'!$I$5","v":0},{"$f":"'4.Durées des activités'!D8*'2.Coût salariaux'!$I$6","v":0},{"$f":"'4.Durées des activités'!E8*'2.Coût salariaux'!$I$7","v":0},{"$f":"'4.Durées des activités'!F8*'2.Coût salariaux'!$I$8","v":16.426226676336785},{"$f":"'4.Durées des activités'!G8*'2.Coût salariaux'!$I$9","v":0},16.426226676336785]
["Recueillir sur un formulaire ad'hoc les éléments utiles et réaliser une première analyse ",{"$f":"'4.Durées des activités'!B9*'2.Coût salariaux'!$I$4","v":0},{"$f":"'4.Durées des activités'!C9*'2.Coût salariaux'!$I$5","v":0},{"$f":"'4.Durées des activités'!D9*'2.Coût salariaux'!$I$6","v":0},{"$f":"'4.Durées des activités'!E9*'2.Coût salariaux'!$I$7","v":0},{"$f":"'4.Durées des activités'!F9*'2.Coût salariaux'!$I$8","v":32.852453352673571},{"$f":"'4.Durées des activités'!G9*'2.Coût salariaux'!$I$9","v":0},32.852453352673571]
["Analyser/décrypter la demande simple en équipe ",{"$f":"'4.Durées des activités'!B10*'2.Coût salariaux'!$I$4","v":4.3287241616667762},{"$f":"'4.Durées des activités'!C10*'2.Coût salariaux'!$I$5","v":4.3287241616667762},{"$f":"'4.Durées des activités'!D10*'2.Coût salariaux'!$I$6","v":0},{"$f":"'4.Durées des activités'!E10*'2.Coût salariaux'!$I$7","v":0},{"$f":"'4.Durées des activités'!F10*'2.Coût salariaux'!$I$8","v":16.426226676336785},{"$f":"'4.Durées des activités'!G10*'2.Coût salariaux'!$I$9","v":0},25.083674999670336]
["Analyser/décrypter la demande complexe en équipe ",{"$f":"'4.Durées des activités'!B11*'2.Coût salariaux'!$I$4","v":19.479258727500493},{"$f":"'4.Durées des activités'!C11*'2.Coût salariaux'!$I$5","v":19.479258727500493},{"$f":"'4.Durées des activités'!D11*'2.Coût salariaux'!$I$6","v":53.525838992549616},{"$f":"'4.Durées des activités'!E11*'2.Coût salariaux'!$I$7","v":27.839254302103249},{"$f":"'4.Durées des activités'!F11*'2.Coût salariaux'!$I$8","v":49.27868002901036},{"$f":"'4.Durées des activités'!G11*'2.Coût salariaux'!$I$9","v":3.1748227282916859},172.77711350695589]
["Formuler une proposition par téléphone / mail auprès du requérant  / Tracer la réponse",{"$f":"'4.Durées des activités'!B12*'2.Coût salariaux'!$I$4","v":0},{"$f":"'4.Durées des activités'!C12*'2.Coût salariaux'!$I$5","v":0},{"$f":"'4.Durées des activités'!D12*'2.Coût salariaux'!$I$6","v":0},{"$f":"'4.Durées des activités'!E12*'2.Coût salariaux'!$I$7","v":0},{"$f":"'4.Durées des activités'!F12*'2.Coût salariaux'!$I$8","v":8.2131133381683927},{"$f":"'4.Durées des activités'!G12*'2.Coût salariaux'!$I$9","v":1.5874113641458429},9.8005247023142363]
["Planifier l'intervention : professionnels intervenants et calendrier ",{"$f":"'4.Durées des activités'!B13*'2.Coût salariaux'!$I$4","v":0},{"$f":"'4.Durées des activités'!C13*'2.Coût salariaux'!$I$5","v":0},{"$f":"'4.Durées des activités'!D13*'2.Coût salariaux'!$I$6","v":0},{"$f":"'4.Durées des activités'!E13*'2.Coût salariaux'!$I$7","v":0},{"$f":"'4.Durées des activités'!F13*'2.Coût salariaux'!$I$8","v":8.2131133381683927},{"$f":"'4.Durées des activités'!G13*'2.Coût salariaux'!$I$9","v":0},8.2131133381683927]
["Formaliser le programme d’intervention",{"$f":"'4.Durées des activités'!B14*'2.Coût salariaux'!$I$4","v":0},{"$f":"'4.Durées des activités'!C14*'2.Coût salariaux'!$I$5","v":0},{"$f":"'4.Durées des activités'!D14*'2.Coût salariaux'!$I$6","v":0},{"$f":"'4.Durées des activités'!E14*'2.Coût salariaux'!$I$7","v":0},{"$f":"'4.Durées des activités'!F14*'2.Coût salariaux'!$I$8","v":24.63934001450518},{"$f":"'4.Durées des activités'!G14*'2.Coût salariaux'!$I$9","v":0},24.63934001450518]
["Faire valider le programme d’intervention par le requérant ",{"$f":"'4.Durées des activités'!B15*'2.Coût salariaux'!$I$4","v":0},{"$f":"'4.Durées des activités'!C15*'2.Coût salariaux'!$I$5","v":0},{"$f":"'4.Durées des activités'!D15*'2.Coût salariaux'!$I$6","v":0},{"$f":"'4.Durées des activités'!E15*'2.Coût salariaux'!$I$7","v":0},{"$f":"'4.Durées des activités'!F15*'2.Coût salariaux'!$I$8","v":0},{"$f":"'4.Durées des activités'!G15*'2.Coût salariaux'!$I$9","v":6.3496454565833718},6.3496454565833718]
["Rédiger une convention d’intervention ",{"$f":"'4.Durées des activités'!B16*'2.Coût salariaux'!$I$4","v":0},{"$f":"'4.Durées des activités'!C16*'2.Coût salariaux'!$I$5","v":0},{"$f":"'4.Durées des activités'!D16*'2.Coût salariaux'!$I$6","v":0},{"$f":"'4.Durées des activités'!E16*'2.Coût salariaux'!$I$7","v":0},{"$f":"'4.Durées des activités'!F16*'2.Coût salariaux'!$I$8","v":24.63934001450518},{"$f":"'4.Durées des activités'!G16*'2.Coût salariaux'!$I$9","v":9.5244681848750581},34.163808199380242]
["Préparer l’accueil de la personne ",{"$f":"'4.Durées des activités'!B17*'2.Coût salariaux'!$I$4","v":0},{"$f":"'4.Durées des activités'!C17*'2.Coût salariaux'!$I$5","v":0},{"$f":"'4.Durées des activités'!D17*'2.Coût salariaux'!$I$6","v":0},{"$f":"'4.Durées des activités'!E17*'2.Coût salariaux'!$I$7","v":0},{"$f":"'4.Durées des activités'!F17*'2.Coût salariaux'!$I$8","v":32.852453352673571},{"$f":"'4.Durées des activités'!G17*'2.Coût salariaux'!$I$9","v":0},32.852453352673571]
["Préparer l'intervention (logistique, supports, outils…)",{"$f":"'4.Durées des activités'!B18*'2.Coût salariaux'!$I$4","v":25.972344970000659},{"$f":"'4.Durées des activités'!C18*'2.Coût salariaux'!$I$5","v":25.972344970000659},{"$f":"'4.Durées des activités'!D18*'2.Coût salariaux'!$I$6","v":0},{"$f":"'4.Durées des activités'!E18*'2.Coût salariaux'!$I$7","v":0},{"$f":"'4.Durées des activités'!F18*'2.Coût salariaux'!$I$8","v":10.950817784224524},{"$f":"'4.Durées des activités'!G18*'2.Coût salariaux'!$I$9","v":0},62.895507724225844]
["Transmettre la demande à l’organisme de formation en capacité d’assurer / de porter la formation. ",{"$f":"'4.Durées des activités'!B19*'2.Coût salariaux'!$I$4","v":0},{"$f":"'4.Durées des activités'!C19*'2.Coût salariaux'!$I$5","v":0},{"$f":"'4.Durées des activités'!D19*'2.Coût salariaux'!$I$6","v":0},{"$f":"'4.Durées des activités'!E19*'2.Coût salariaux'!$I$7","v":0},{"$f":"'4.Durées des activités'!F19*'2.Coût salariaux'!$I$8","v":16.426226676336785},{"$f":"'4.Durées des activités'!G19*'2.Coût salariaux'!$I$9","v":4.762234092437529},21.188460768774313]
["Déterminer avec l'Organisme de formation porteur les modalités de partenariat (délégation, mise à disposition d'intervenants)",{"$f":"'4.Durées des activités'!B20*'2.Coût salariaux'!$I$4","v":0},{"$f":"'4.Durées des activités'!C20*'2.Coût salariaux'!$I$5","v":0},{"$f":"'4.Durées des activités'!D20*'2.Coût salariaux'!$I$6","v":0},{"$f":"'4.Durées des activités'!E20*'2.Coût salariaux'!$I$7","v":0},{"$f":"'4.Durées des activités'!F20*'2.Coût salariaux'!$I$8","v":16.426226676336785},{"$f":"'4.Durées des activités'!G20*'2.Coût salariaux'!$I$9","v":0},16.426226676336785]
["S'assurer de la réalisation de l'action de formation par l'Organisme de formation sollicité ",{"$f":"'4.Durées des activités'!B21*'2.Coût salariaux'!$I$4","v":0},{"$f":"'4.Durées des activités'!C21*'2.Coût salariaux'!$I$5","v":0},{"$f":"'4.Durées des activités'!D21*'2.Coût salariaux'!$I$6","v":0},{"$f":"'4.Durées des activités'!E21*'2.Coût salariaux'!$I$7","v":0},{"$f":"'4.Durées des activités'!F21*'2.Coût salariaux'!$I$8","v":0},{"$f":"'4.Durées des activités'!G21*'2.Coût salariaux'!$I$9","v":9.5244681848750581},9.5244681848750581]
["Animer/Délivrer la prestation de sensibilisation",{"$f":"'4.Durées des activités'!B22*'2.Coût salariaux'!$I$4","v":51.944689940001318},{"$f":"'4.Durées des activités'!C22*'2.Coût salariaux'!$I$5","v":51.944689940001318},{"$f":"'4.Durées des activités'!D22*'2.Coût salariaux'!$I$6","v":0},{"$f":"'4.Durées des activités'!E22*'2.Coût salariaux'!$I$7","v":0},{"$f":"'4.Durées des activités'!F22*'2.Coût salariaux'!$I$8","v":0},{"$f":"'4.Durées des activités'!G22*'2.Coût salariaux'!$I$9","v":0},103.88937988000264]
["Animer/Délivrer la prestation d'appui aux pratiques",{"$f":"'4.Durées des activités'!B23*'2.Coût salariaux'!$I$4","v":51.944689940001318},{"$f":"'4.Durées des activités'!C23*'2.Coût salariaux'!$I$5","v":51.944689940001318},{"$f":"'4.Durées des activités'!D23*'2.Coût salariaux'!$I$6","v":0},{"$f":"'4.Durées des activités'!E23*'2.Coût salariaux'!$I$7","v":0},{"$f":"'4.Durées des activités'!F23*'2.Coût salariaux'!$I$8","v":0},{"$f":"'4.Durées des activités'!G23*'2.Coût salariaux'!$I$9","v":0},103.88937988000264]
["Animer/Délivrer la prestation d'appui-conseil",{"$f":"'4.Durées des activités'!B24*'2.Coût salariaux'!$I$4","v":51.944689940001318},{"$f":"'4.Durées des activités'!C24*'2.Coût salariaux'!$I$5","v":51.944689940001318},{"$f":"'4.Durées des activités'!D24*'2.Coût salariaux'!$I$6","v":0},{"$f":"'4.Durées des activités'!E24*'2.Coût salariaux'!$I$7","v":0},{"$f":"'4.Durées des activités'!F24*'2.Coût salariaux'!$I$8","v":0},{"$f":"'4.Durées des activités'!G24*'2.Coût salariaux'!$I$9","v":0},103.88937988000264]
["Animer/Délivrer la prestation de formation",{"$f":"'4.Durées des activités'!B25*'2.Coût salariaux'!$I$4","v":181.80641479000462},{"$f":"'4.Durées des activités'!C25*'2.Coût salariaux'!$I$5","v":181.80641479000462},{"$f":"'4.Durées des activités'!D25*'2.Coût salariaux'!$I$6","v":0},{"$f":"'4.Durées des activités'!E25*'2.Coût salariaux'!$I$7","v":0},{"$f":"'4.Durées des activités'!F25*'2.Coût salariaux'!$I$8","v":0},{"$f":"'4.Durées des activités'!G25*'2.Coût salariaux'!$I$9","v":0},363.61282958000925]
["Animer/Délivrer la prestation d'observation",{"$f":"'4.Durées des activités'!B26*'2.Coût salariaux'!$I$4","v":77.917034910001973},{"$f":"'4.Durées des activités'!C26*'2.Coût salariaux'!$I$5","v":77.917034910001973},{"$f":"'4.Durées des activités'!D26*'2.Coût salariaux'!$I$6","v":0},{"$f":"'4.Durées des activités'!E26*'2.Coût salariaux'!$I$7","v":0},{"$f":"'4.Durées des activités'!F26*'2.Coût salariaux'!$I$8","v":0},{"$f":"'4.Durées des activités'!G26*'2.Coût salariaux'!$I$9","v":0},155.83406982000395]
["Rédiger un bilan, une synthèse de l'évaluation pluridisciplinaire  ",{"$f":"'4.Durées des activités'!B27*'2.Coût salariaux'!$I$4","v":25.972344970000659},{"$f":"'4.Durées des activités'!C27*'2.Coût salariaux'!$I$5","v":25.972344970000659},{"$f":"'4.Durées des activités'!D27*'2.Coût salariaux'!$I$6","v":71.367785323399488},{"$f":"'4.Durées des activités'!E27*'2.Coût salariaux'!$I$7","v":37.119005736137666},{"$f":"'4.Durées des activités'!F27*'2.Coût salariaux'!$I$8","v":32.852453352673571},{"$f":"'4.Durées des activités'!G27*'2.Coût salariaux'!$I$9","v":9.5244681848750581},202.80840253708709]
["Formaliser des préconisations ",{"$f":"'4.Durées des activités'!B28*'2.Coût salariaux'!$I$4","v":19.479258727500493},{"$f":"'4.Durées des activités'!C28*'2.Coût salariaux'!$I$5","v":19.479258727500493},{"$f":"'4.Durées des activités'!D28*'2.Coût salariaux'!$I$6","v":0},{"$f":"'4.Durées des activités'!E28*'2.Coût salariaux'!$I$7","v":0},{"$f":"'4.Durées des activités'!F28*'2.Coût salariaux'!$I$8","v":16.426226676336785},{"$f":"'4.Durées des activités'!G28*'2.Coût salariaux'!$I$9","v":0},55.384744131337769]
["Évaluer la prestation \"à chaud\" ",{"$f":"'4.Durées des activités'!B29*'2.Coût salariaux'!$I$4","v":0},{"$f":"'4.Durées des activités'!C29*'2.Coût salariaux'!$I$5","v":0},{"$f":"'4.Durées des activités'!D29*'2.Coût salariaux'!$I$6","v":0},{"$f":"'4.Durées des activités'!E29*'2.Coût salariaux'!$I$7","v":0},{"$f":"'4.Durées des activités'!F29*'2.Coût salariaux'!$I$8","v":16.426226676336785},{"$f":"'4.Durées des activités'!G29*'2.Coût salariaux'!$I$9","v":0},16.426226676336785]
["Évaluer un suivi de l'intervention à 3 / 6 mois",{"$f":"'4.Durées des activités'!B30*'2.Coût salariaux'!$I$4","v":0},{"$f":"'4.Durées des activités'!C30*'2.Coût salariaux'!$I$5","v":0},{"$f":"'4.Durées des activités'!D30*'2.Coût salariaux'!$I$6","v":0},{"$f":"'4.Durées des activités'!E30*'2.Coût salariaux'!$I$7","v":0},{"$f":"'4.Durées des activités'!F30*'2.Coût salariaux'!$I$8","v":49.27868002901036},{"$f":"'4.Durées des activités'!G30*'2.Coût salariaux'!$I$9","v":0},49.27868002901036]
["Suivre l'activité RH et budgétaire de façon analytique ",{"$f":"'4.Durées des activités'!B31*'2.Coût salariaux'!$I$4","v":0},{"$f":"'4.Durées des activités'!C31*'2.Coût salariaux'!$I$5","v":0},{"$f":"'4.Durées des activités'!D31*'2.Coût salariaux'!$I$6","v":0},{"$f":"'4.Durées des activités'!E31*'2.Coût salariaux'!$I$7","v":0},{"$f":"'4.Durées des activités'!F31*'2.Coût salariaux'!$I$8","v":0},{"$f":"'4.Durées des activités'!G31*'2.Coût salariaux'!$I$9","v":19.048936369750116},19.048936369750116]

{"sheet":"6.ETP par activité","index":6,"n_rows":31,"n_cols":7,"rows_kept":31,"cut":false,"hidden":false,"merged":[[0,0,0,6]]}
["ETP de personnel pour chaque activité"]
[]
["Activités","Educateur","Infirmière","Médecin spécialisé","Psychologue","Référent FR","Administratif"]
["Réceptionner une demande par formulaire, mail ou téléphone",{"$f":"('4.Durées des activités'!B4/60)/'2.Coût salariaux'!$K$4","v":0},{"$f":"('4.Durées des activités'!C4/60)/'2.Coût salariaux'!$K$5","v":0},{"$f":"('4.Durées des activités'!D4/60)/'2.Coût salariaux'!$K$6","v":0},{"$f":"('4.Durées des activités'!E4/60)/'2.Coût salariaux'!$K$7","v":0},{"$f":"('4.Durées des activités'!F4/60)/'2.Coût salariaux'!$K$8","v":0},{"$f":"('4.Durées des activités'!G4/60)/'2.Coût salariaux'!$K$9","v":5.1856461315079858E-5}]
["Enregistrer la demande : demandeur, objet de la sollicitation a nature de la sollicitation  ",{"$f":"('4.Durées des activités'!B5/60)/'2.Coût salariaux'!$K$4","v":0},{"$f":"('4.Durées des activités'!C5/60)/'2.Coût salariaux'!$K$5","v":0},{"$f":"('4.Durées des activités'!D5/60)/'2.Coût salariaux'!$K$6","v":0},{"$f":"('4.Durées des activités'!E5/60)/'2.Coût salariaux'!$K$7","v":0},{"$f":"('4.Durées des activités'!F5/60)/'2.Coût salariaux'!$K$8","v":0},{"$f":"('4.Durées des activités'!G5/60)/'2.Coût salariaux'!$K$9","v":5.1856461315079858E-5}]
["Apporter une réponse en termes d'information (téléphone, mail) ",{"$f":"('4.Durées des activités'!B6/60)/'2.Coût salariaux'!$K$4","v":0},{"$f":"('4.Durées des activités'!C6/60)/'2.Coût salariaux'!$K$5","v":0},{"$f":"('4.Durées des activités'!D6/60)/'2.Coût salariaux'!$K$6","v":0},{"$f":"('4.Durées des activités'!E6/60)/'2.Coût salariaux'!$K$7","v":0},{"$f":"('4.Durées des activités'!F6/60)/'2.Coût salariaux'!$K$8","v":1.5556938394523958E-4},{"$f":"('4.Durées des activités'!G6/60)/'2.Coût salariaux'!$K$9","v":0}]
["Adresser une documentation (par mail) ",{"$f":"('4.Durées des activités'!B7/60)/'2.Coût salariaux'!$K$4","v":0},{"$f":"('4.Durées des activités'!C7/60)/'2.Coût salariaux'!$K$5","v":0},{"$f":"('4.Durées des activités'!D7/60)/'2.Coût salariaux'!$K$6","v":0},{"$f":"('4.Durées des activités'!E7/60)/'2.Coût salariaux'!$K$7","v":0},{"$f":"('4.Durées des activités'!F7/60)/'2.Coût salariaux'!$K$8","v":0},{"$f":"('4.Durées des activités'!G7/60)/'2.Coût salariaux'!$K$9","v":5.1856461315079858E-5}]
["Conduire un entretien téléphonique avec le requérant",{"$f":"('4.Durées des activités'!B8/60)/'2.Coût salariaux'!$K$4","v":0},{"$f":"('4.Durées des activités'!C8/60)/'2.Coût salariaux'!$K$5","v":0},{"$f":"('4.Durées des activités'!D8/60)/'2.Coût salariaux'!$K$6","v":0},{"$f":"('4.Durées des activités'!E8/60)/'2.Coût salariaux'!$K$7","v":0},{"$f":"('4.Durées des activités'!F8/60)/'2.Coût salariaux'!$K$8","v":3.1113876789047915E-4},{"$f":"('4.Durées des activités'!G8/60)/'2.Coût salariaux'!$K$9","v":0}]
["Recueillir sur un formulaire ad'hoc les éléments utiles et réaliser une première analyse ",{"$f":"('4.Durées des activités'!B9/60)/'2.Coût salariaux'!$K$4","v":0},{"$f":"('4.Durées des activités'!C9/60)/'2.Coût salariaux'!$K$5","v":0},{"$f":"('4.Durées des activités'!D9/60)/'2.Coût salariaux'!$K$6","v":0},{"$f":"('4.Durées des activités'!E9/60)/'2.Coût salariaux'!$K$7","v":0},{"$f":"('4.Durées des activités'!F9/60)/'2.Coût salariaux'!$K$8","v":6.222775357809583E-4},{"$f":"('4.Durées des activités'!G9/60)/'2.Coût salariaux'!$K$9","v":0}]
["Analyser/décrypter la demande simple en équipe ",{"$f":"('4.Durées des activités'!B10/60)/'2.Coût salariaux'!$K$4","v":1.0371292263015972E-4},{"$f":"('4.Durées des activités'!C10/60)/'2.Coût salariaux'!$K$5","v":1.0371292263015972E-4},{"$f":"('4.Durées des activités'!D10/60)/'2.Coût salariaux'!$K$6","v":0},{"$f":"('4.Durées des activités'!E10/60)/'2.Coût salariaux'!$K$7","v":0},{"$f":"('4.Durées des activités'!F10/60)/'2.Coût salariaux'!$K$8","v":3.1113876789047915E-4},{"$f":"('4.Durées des activités'!G10/60)/'2.Coût salariaux'!$K$9","v":0}]
["Analyser/décrypter la demande complexe en équipe ",{"$f":"('4.Durées des activités'!B11/60)/'2.Coût salariaux'!$K$4","v":4.6670815183571873E-4},{"$f":"('4.Durées des activités'!C11/60)/'2.Coût salariaux'!$K$5","v":4.6670815183571873E-4},{"$f":"('4.Durées des activités'!D11/60)/'2.Coût salariaux'!$K$6","v":4.6670815183571873E-4},{"$f":"('4.Durées des activités'!E11/60)/'2.Coût salariaux'!$K$7","v":4.6670815183571873E-4},{"$f":"('4.Durées des activités'!F11/60)/'2.Coût salariaux'!$K$8","v":9.3341630367143745E-4},{"$f":"('4.Durées des activités'!G11/60)/'2.Coût salariaux'!$K$9","v":1.0371292263015972E-4}]
["Formuler une proposition par téléphone / mail auprès du requérant  / Tracer la réponse",{"$f":"('4.Durées des activités'!B12/60)/'2.Coût salariaux'!$K$4","v":0},{"$f":"('4.Durées des activités'!C12/60)/'2.Coût salariaux'!$K$5","v":0},{"$f":"('4.Durées des activités'!D12/60)/'2.Coût salariaux'!$K$6","v":0},{"$f":"('4.Durées des activités'!E12/60)/'2.Coût salariaux'!$K$7","v":0},{"$f":"('4.Durées des activités'!F12/60)/'2.Coût salariaux'!$K$8","v":1.5556938394523958E-4},{"$f":"('4.Durées des activités'!G12/60)/'2.Coût salariaux'!$K$9","v":5.1856461315079858E-5}]
["Planifier l'intervention : professionnels intervenants et calendrier ",{"$f":"('4.Durées des activités'!B13/60)/'2.Coût salariaux'!$K$4","v":0},{"$f":"('4.Durées des activités'!C13/60)/'2.Coût salariaux'!$K$5","v":0},{"$f":"('4.Durées des activités'!D13/60)/'2.Coût salariaux'!$K$6","v":0},{"$f":"('4.Durées des activités'!E13/60)/'2.Coût salariaux'!$K$7","v":0},{"$f":"('4.Durées des activités'!F13/60)/'2.Coût salariaux'!$K$8","v":1.5556938394523958E-4},{"$f":"('4.Durées des activités'!G13/60)/'2.Coût salariaux'!$K$9","v":0}]
["Formaliser le programme d’intervention",{"$f":"('4.Durées des activités'!B14/60)/'2.Coût salariaux'!$K$4","v":0},{"$f":"('4.Durées des activités'!C14/60)/'2.Coût salariaux'!$K$5","v":0},{"$f":"('4.Durées des activités'!D14/60)/'2.Coût salariaux'!$K$6","v":0},{"$f":"('4.Durées des activités'!E14/60)/'2.Coût salariaux'!$K$7","v":0},{"$f":"('4.Durées des activités'!F14/60)/'2.Coût salariaux'!$K$8","v":4.6670815183571873E-4},{"$f":"('4.Durées des activités'!G14/60)/'2.Coût salariaux'!$K$9","v":0}]
["Faire valider le programme d’intervention par le requérant ",{"$f":"('4.Durées des activités'!B15/60)/'2.Coût salariaux'!$K$4","v":0},{"$f":"('4.Durées des activités'!C15/60)/'2.Coût salariaux'!$K$5","v":0},{"$f":"('4.Durées des activités'!D15/60)/'2.Coût salariaux'!$K$6","v":0},{"$f":"('4.Durées des activités'!E15/60)/'2.Coût salariaux'!$K$7","v":0},{"$f":"('4.Durées des activités'!F15/60)/'2.Coût salariaux'!$K$8","v":0},{"$f":"('4.Durées des activités'!G15/60)/'2.Coût salariaux'!$K$9","v":2.0742584526031943E-4}]
["Rédiger une convention d’intervention ",{"$f":"('4.Durées des activités'!B16/60)/'2.Coût salariaux'!$K$4","v":0},{"$f":"('4.Durées des activités'!C16/60)/'2.Coût salariaux'!$K$5","v":0},{"$f":"('4.Durées des activités'!D16/60)/'2.Coût salariaux'!$K$6","v":0},{"$f":"('4.Durées des activités'!E16/60)/'2.Coût salariaux'!$K$7","v":0},{"$f":"('4.Durées des activités'!F16/60)/'2.Coût salariaux'!$K$8","v":4.6670815183571873E-4},{"$f":"('4.Durées des activités'!G16/60)/'2.Coût salariaux'!$K$9","v":3.1113876789047915E-4}]
["Préparer l’accueil de la personne ",{"$f":"('4.Durées des activités'!B17/60)/'2.Coût salariaux'!$K$4","v":0},{"$f":"('4.Durées des activités'!C17/60)/'2.Coût salariaux'!$K$5","v":0},{"$f":"('4.Durées des activités'!D17/60)/'2.Coût salariaux'!$K$6","v":0},{"$f":"('4.Durées des activités'!E17/60)/'2.Coût salariaux'!$K$7","v":0},{"$f":"('4.Durées des activités'!F17/60)/'2.Coût salariaux'!$K$8","v":6.222775357809583E-4},{"$f":"('4.Durées des activités'!G17/60)/'2.Coût salariaux'!$K$9","v":0}]
["Préparer l'intervention (logistique, supports, outils…)",{"$f":"('4.Durées des activités'!B18/60)/'2.Coût salariaux'!$K$4","v":6.222775357809583E-4},{"$f":"('4.Durées des activités'!C18/60)/'2.Coût salariaux'!$K$5","v":6.222775357809583E-4},{"$f":"('4.Durées des activités'!D18/60)/'2.Coût salariaux'!$K$6","v":0},{"$f":"('4.Durées des activités'!E18/60)/'2.Coût salariaux'!$K$7","v":0},{"$f":"('4.Durées des activités'!F18/60)/'2.Coût salariaux'!$K$8","v":2.0742584526031943E-4},{"$f":"('4.Durées des activités'!G18/60)/'2.Coût salariaux'!$K$9","v":0}]
["Transmettre la demande à l’organisme de formation en capacité d’assurer / de porter la formation. ",{"$f":"('4.Durées des activités'!B19/60)/'2.Coût salariaux'!$K$4","v":0},{"$f":"('4.Durées des activités'!C19/60)/'2.Coût salariaux'!$K$5","v":0},{"$f":"('4.Durées des activités'!D19/60)/'2.Coût salariaux'!$K$6","v":0},{"$f":"('4.Durées des activités'!E19/60)/'2.Coût salariaux'!$K$7","v":0},{"$f":"('4.Durées des activités'!F19/60)/'2.Coût salariaux'!$K$8","v":3.1113876789047915E-4},{"$f":"('4.Durées des activités'!G19/60)/'2.Coût salariaux'!$K$9","v":1.5556938394523958E-4}]
["Déterminer avec l'Organisme de formation porteur les modalités de partenariat (délégation, mise à disposition d'intervenants)",{"$f":"('4.Durées des activités'!B20/60)/'2.Coût salariaux'!$K$4","v":0},{"$f":"('4.Durées des activités'!C20/60)/'2.Coût salariaux'!$K$5","v":0},{"$f":"('4.Durées des activités'!D20/60)/'2.Coût salariaux'!$K$6","v":0},{"$f":"('4.Durées des activités'!E20/60)/'2.Coût salariaux'!$K$7","v":0},{"$f":"('4.Durées des activités'!F20/60)/'2.Coût salariaux'!$K$8","v":3.1113876789047915E-4},{"$f":"('4.Durées des activités'!G20/60)/'2.Coût salariaux'!$K$9","v":0}]
["S'assurer de la réalisation de l'action de formation par l'Organisme de formation sollicité ",{"$f":"('4.Durées des activités'!B21/60)/'2.Coût salariaux'!$K$4","v":0},{"$f":"('4.Durées des activités'!C21/60)/'2.Coût salariaux'!$K$5","v":0},{"$f":"('4.Durées des activités'!D21/60)/'2.Coût salariaux'!$K$6","v":0},{"$f":"('4.Durées des activités'!E21/60)/'2.Coût salariaux'!$K$7","v":0},{"$f":"('4.Durées des activités'!F21/60)/'2.Coût salariaux'!$K$8","v":0},{"$f":"('4.Durées des activités'!G21/60)/'2.Coût salariaux'!$K$9","v":3.1113876789047915E-4}]
["Animer/Délivrer la prestation de sensibilisation",{"$f":"('4.Durées des activités'!B22/60)/'2.Coût salariaux'!$K$4","v":1.2445550715619166E-3},{"$f":"('4.Durées des activités'!C22/60)/'2.Coût salariaux'!$K$5","v":1.2445550715619166E-3},{"$f":"('4.Durées des activités'!D22/60)/'2.Coût salariaux'!$K$6","v":0},{"$f":"('4.Durées des activités'!E22/60)/'2.Coût salariaux'!$K$7","v":0},{"$f":"('4.Durées des activités'!F22/60)/'2.Coût salariaux'!$K$8","v":0},{"$f":"('4.Durées des activités'!G22/60)/'2.Coût salariaux'!$K$9","v":0}]
["Animer/Délivrer la prestation d'appui aux pratiques",{"$f":"('4.Durées des activités'!B23/60)/'2.Coût salariaux'!$K$4","v":1.2445550715619166E-3},{"$f":"('4.Durées des activités'!C23/60)/'2.Coût salariaux'!$K$5","v":1.2445550715619166E-3},{"$f":"('4.Durées des activités'!D23/60)/'2.Coût salariaux'!$K$6","v":0},{"$f":"('4.Durées des activités'!E23/60)/'2.Coût salariaux'!$K$7","v":0},{"$f":"('4.Durées des activités'!F23/60)/'2.Coût salariaux'!$K$8","v":0},{"$f":"('4.Durées des activités'!G23/60)/'2.Coût salariaux'!$K$9","v":0}]
["Animer/Délivrer la prestation d'appui-conseil",{"$f":"('4.Durées des activités'!B24/60)/'2.Coût salariaux'!$K$4","v":1.2445550715619166E-3},{"$f":"('4.Durées des activités'!C24/60)/'2.Coût salariaux'!$K$5","v":1.2445550715619166E-3},{"$f":"('4.Durées des activités'!D24/60)/'2.Coût salariaux'!$K$6","v":0},{"$f":"('4.Durées des activités'!E24/60)/'2.Coût salariaux'!$K$7","v":0},{"$f":"('4.Durées des activités'!F24/60)/'2.Coût salariaux'!$K$8","v":0},{"$f":"('4.Durées des activités'!G24/60)/'2.Coût salariaux'!$K$9","v":0}]
["Animer/Délivrer la prestation de formation",{"$f":"('4.Durées des activités'!B25/60)/'2.Coût salariaux'!$K$4","v":4.3559427504667085E-3},{"$f":"('4.Durées des activités'!C25/60)/'2.Coût salariaux'!$K$5","v":4.3559427504667085E-3},{"$f":"('4.Durées des activités'!D25/60)/'2.Coût salariaux'!$K$6","v":0},{"$f":"('4.Durées des activités'!E25/60)/'2.Coût salariaux'!$K$7","v":0},{"$f":"('4.Durées des activités'!F25/60)/'2.Coût salariaux'!$K$8","v":0},{"$f":"('4.Durées des activités'!G25/60)/'2.Coût salariaux'!$K$9","v":0}]
["Animer/Délivrer la prestation d'observation",{"$f":"('4.Durées des activités'!B26/60)/'2.Coût salariaux'!$K$4","v":1.8668326073428749E-3},{"$f":"('4.Durées des activités'!C26/60)/'2.Coût salariaux'!$K$5","v":1.8668326073428749E-3},{"$f":"('4.Durées des activités'!D26/60)/'2.Coût salariaux'!$K$6","v":0},{"$f":"('4.Durées des activités'!E26/60)/'2.Coût salariaux'!$K$7","v":0},{"$f":"('4.Durées des activités'!F26/60)/'2.Coût salariaux'!$K$8","v":0},{"$f":"('4.Durées des activités'!G26/60)/'2.Coût salariaux'!$K$9","v":0}]
["Rédiger un bilan, une synthèse de l'évaluation pluridisciplinaire  ",{"$f":"('4.Durées des activités'!B27/60)/'2.Coût salariaux'!$K$4","v":6.222775357809583E-4},{"$f":"('4.Durées des activités'!C27/60)/'2.Coût salariaux'!$K$5","v":6.222775357809583E-4},{"$f":"('4.Durées des activités'!D27/60)/'2.Coût salariaux'!$K$6","v":6.222775357809583E-4},{"$f":"('4.Durées des activités'!E27/60)/'2.Coût salariaux'!$K$7","v":6.222775357809583E-4},{"$f":"('4.Durées des activités'!F27/60)/'2.Coût salariaux'!$K$8","v":6.222775357809583E-4},{"$f":"('4.Durées des activités'!G27/60)/'2.Coût salariaux'!$K$9","v":3.1113876789047915E-4}]
["Formaliser des préconisations ",{"$f":"('4.Durées des activités'!B28/60)/'2.Coût salariaux'!$K$4","v":4.6670815183571873E-4},{"$f":"('4.Durées des activités'!C28/60)/'2.Coût salariaux'!$K$5","v":4.6670815183571873E-4},{"$f":"('4.Durées des activités'!D28/60)/'2.Coût salariaux'!$K$6","v":0},{"$f":"('4.Durées des activités'!E28/60)/'2.Coût salariaux'!$K$7","v":0},{"$f":"('4.Durées des activités'!F28/60)/'2.Coût salariaux'!$K$8","v":3.1113876789047915E-4},{"$f":"('4.Durées des activités'!G28/60)/'2.Coût salariaux'!$K$9","v":0}]
["Évaluer la prestation \"à chaud\" ",{"$f":"('4.Durées des activités'!B29/60)/'2.Coût salariaux'!$K$4","v":0},{"$f":"('4.Durées des activités'!C29/60)/'2.Coût salariaux'!$K$5","v":0},{"$f":"('4.Durées des activités'!D29/60)/'2.Coût salariaux'!$K$6","v":0},{"$f":"('4.Durées des activités'!E29/60)/'2.Coût salariaux'!$K$7","v":0},{"$f":"('4.Durées des activités'!F29/60)/'2.Coût salariaux'!$K$8","v":3.1113876789047915E-4},{"$f":"('4.Durées des activités'!G29/60)/'2.Coût salariaux'!$K$9","v":0}]
["Évaluer un suivi de l'intervention à 3 / 6 mois",{"$f":"('4.Durées des activités'!B30/60)/'2.Coût salariaux'!$K$4","v":0},{"$f":"('4.Durées des activités'!C30/60)/'2.Coût salariaux'!$K$5","v":0},{"$f":"('4.Durées des activités'!D30/60)/'2.Coût salariaux'!$K$6","v":0},{"$f":"('4.Durées des activités'!E30/60)/'2.Coût salariaux'!$K$7","v":0},{"$f":"('4.Durées des activités'!F30/60)/'2.Coût salariaux'!$K$8","v":9.3341630367143745E-4},{"$f":"('4.Durées des activités'!G30/60)/'2.Coût salariaux'!$K$9","v":0}]
["Suivre l'activité RH et budgétaire de façon analytique ",{"$f":"('4.Durées des activités'!B31/60)/'2.Coût salariaux'!$K$4","v":0},{"$f":"('4.Durées des activités'!C31/60)/'2.Coût salariaux'!$K$5","v":0},{"$f":"('4.Durées des activités'!D31/60)/'2.Coût salariaux'!$K$6","v":0},{"$f":"('4.Durées des activités'!E31/60)/'2.Coût salariaux'!$K$7","v":0},{"$f":"('4.Durées des activités'!F31/60)/'2.Coût salariaux'!$K$8","v":0},{"$f":"('4.Durées des activités'!G31/60)/'2.Coût salariaux'!$K$9","v":6.222775357809583E-4}]

{"sheet":"7.Coûts par prestation","index":7,"n_rows":33,"n_cols":9,"rows_kept":33,"cut":false,"hidden":false,"merged":[[0,0,0,8],[2,6,3,6],[2,7,2,8],[2,0,3,0],[2,1,3,1],[2,2,3,2],[2,3,2,4],[2,5,3,5]]}
["Coût direct de chaque prestation et des activités la composant, en euros"]
[]
["Prestations de la fonction ressource / Activités ","Information Documentation","Sensibilisation","Formation ",null,"Appui aux pratiques","Appui-conseil","Observation-évaluation partagée"]
[null,null,null,"Cas 1 \nESMS NON OF ","Cas 2 \nESMS OF",null,null,"Cas 1 \n Sous forme d'accueil temporaire ","Cas 2\nAu sein de l'ESMS requérant "]
["Réceptionner une demande par formulaire, mail ou téléphone",{"$f":"IF('3.Activités par prestation'!B5=1,'5.Coût activité profession'!$H4,0)","v":1.5874113641458429},{"$f":"IF('3.Activités par prestation'!C5=1,'5.Coût activité profession'!$H4,0)","v":1.5874113641458429},{"$f":"IF('3.Activités par prestation'!D5=1,'5.Coût activité profession'!$H4,0)","v":1.5874113641458429},{"$f":"IF('3.Activités par prestation'!E5=1,'5.Coût activité profession'!$H4,0)","v":1.5874113641458429},{"$f":"IF('3.Activités par prestation'!F5=1,'5.Coût activité profession'!$H4,0)","v":1.5874113641458429},{"$f":"IF('3.Activités par prestation'!G5=1,'5.Coût activité profession'!$H4,0)","v":1.5874113641458429},{"$f":"IF('3.Activités par prestation'!H5=1,'5.Coût activité profession'!$H4,0)","v":1.5874113641458429},{"$f":"IF('3.Activités par prestation'!I5=1,'5.Coût activité profession'!$H4,0)","v":1.5874113641458429}]
["Enregistrer la demande : demandeur, objet de la sollicitation ",{"$f":"IF('3.Activités par prestation'!B6=1,'5.Coût activité profession'!$H5,0)","v":1.5874113641458429},{"$f":"IF('3.Activités par prestation'!C6=1,'5.Coût activité profession'!$H5,0)","v":1.5874113641458429},{"$f":"IF('3.Activités par prestation'!D6=1,'5.Coût activité profession'!$H5,0)","v":1.5874113641458429},{"$f":"IF('3.Activités par prestation'!E6=1,'5.Coût activité profession'!$H5,0)","v":1.5874113641458429},{"$f":"IF('3.Activités par prestation'!F6=1,'5.Coût activité profession'!$H5,0)","v":1.5874113641458429},{"$f":"IF('3.Activités par prestation'!G6=1,'5.Coût activité profession'!$H5,0)","v":1.5874113641458429},{"$f":"IF('3.Activités par prestation'!H6=1,'5.Coût activité profession'!$H5,0)","v":1.5874113641458429},{"$f":"IF('3.Activités par prestation'!I6=1,'5.Coût activité profession'!$H5,0)","v":1.5874113641458429}]
["Apporter une réponse en termes d'information (téléphone, mail) ",{"$f":"IF('3.Activités par prestation'!B7=1,'5.Coût activité profession'!$H6,0)","v":8.2131133381683927},{"$f":"IF('3.Activités par prestation'!C7=1,'5.Coût activité profession'!$H6,0)","v":0},{"$f":"IF('3.Activités par prestation'!D7=1,'5.Coût activité profession'!$H6,0)","v":0},{"$f":"IF('3.Activités par prestation'!E7=1,'5.Coût activité profession'!$H6,0)","v":0},{"$f":"IF('3.Activités par prestation'!F7=1,'5.Coût activité profession'!$H6,0)","v":0},{"$f":"IF('3.Activités par prestation'!G7=1,'5.Coût activité profession'!$H6,0)","v":0},{"$f":"IF('3.Activités par prestation'!H7=1,'5.Coût activité profession'!$H6,0)","v":0},{"$f":"IF('3.Activités par prestation'!I7=1,'5.Coût activité profession'!$H6,0)","v":0}]
["Adresser une documentation (par mail) ",{"$f":"IF('3.Activités par prestation'!B8=1,'5.Coût activité profession'!$H7,0)","v":1.5874113641458429},{"$f":"IF('3.Activités par prestation'!C8=1,'5.Coût activité profession'!$H7,0)","v":0},{"$f":"IF('3.Activités par prestation'!D8=1,'5.Coût activité profession'!$H7,0)","v":0},{"$f":"IF('3.Activités par prestation'!E8=1,'5.Coût activité profession'!$H7,0)","v":0},{"$f":"IF('3.Activités par prestation'!F8=1,'5.Coût activité profession'!$H7,0)","v":0},{"$f":"IF('3.Activités par prestation'!G8=1,'5.Coût activité profession'!$H7,0)","v":0},{"$f":"IF('3.Activités par prestation'!H8=1,'5.Coût activité profession'!$H7,0)","v":0},{"$f":"IF('3.Activités par prestation'!I8=1,'5.Coût activité profession'!$H7,0)","v":0}]
["Conduire un entretien téléphonique avec le requérant",{"$f":"IF('3.Activités par prestation'!B9=1,'5.Coût activité profession'!$H8,0)","v":0},{"$f":"IF('3.Activités par prestation'!C9=1,'5.Coût activité profession'!$H8,0)","v":16.426226676336785},{"$f":"IF('3.Activités par prestation'!D9=1,'5.Coût activité profession'!$H8,0)","v":16.426226676336785},{"$f":"IF('3.Activités par prestation'!E9=1,'5.Coût activité profession'!$H8,0)","v":16.426226676336785},{"$f":"IF('3.Activités par prestation'!F9=1,'5.Coût activité profession'!$H8,0)","v":16.426226676336785},{"$f":"IF('3.Activités par prestation'!G9=1,'5.Coût activité profession'!$H8,0)","v":16.426226676336785},{"$f":"IF('3.Activités par prestation'!H9=1,'5.Coût activité profession'!$H8,0)","v":16.426226676336785},{"$f":"IF('3.Activités par prestation'!I9=1,'5.Coût activité profession'!$H8,0)","v":16.426226676336785}]
["Recueillir sur un formulaire ad'hoc les éléments utiles et réaliser une première analyse ",{"$f":"IF('3.Activités par prestation'!B10=1,'5.Coût activité profession'!$H9,0)","v":0},{"$f":"IF('3.Activités par prestation'!C10=1,'5.Coût activité profession'!$H9,0)","v":32.852453352673571},{"$f":"IF('3.Activités par prestation'!D10=1,'5.Coût activité profession'!$H9,0)","v":32.852453352673571},{"$f":"IF('3.Activités par prestation'!E10=1,'5.Coût activité profession'!$H9,0)","v":32.852453352673571},{"$f":"IF('3.Activités par prestation'!F10=1,'5.Coût activité profession'!$H9,0)","v":32.852453352673571},{"$f":"IF('3.Activités par prestation'!G10=1,'5.Coût activité profession'!$H9,0)","v":32.852453352673571},{"$f":"IF('3.Activités par prestation'!H10=1,'5.Coût activité profession'!$H9,0)","v":32.852453352673571},{"$f":"IF('3.Activités par prestation'!I10=1,'5.Coût activité profession'!$H9,0)","v":32.852453352673571}]
["Analyser/décrypter la demande simple en équipe ",{"$f":"IF('3.Activités par prestation'!B11=1,'5.Coût activité profession'!$H10,0)","v":0},{"$f":"IF('3.Activités par prestation'!C11=1,'5.Coût activité profession'!$H10,0)","v":25.083674999670336},{"$f":"IF('3.Activités par prestation'!D11=1,'5.Coût activité profession'!$H10,0)","v":0},{"$f":"IF('3.Activités par prestation'!E11=1,'5.Coût activité profession'!$H10,0)","v":0},{"$f":"IF('3.Activités par prestation'!F11=1,'5.Coût activité profession'!$H10,0)","v":0},{"$f":"IF('3.Activités par prestation'!G11=1,'5.Coût activité profession'!$H10,0)","v":0},{"$f":"IF('3.Activités par prestation'!H11=1,'5.Coût activité profession'!$H10,0)","v":0},{"$f":"IF('3.Activités par prestation'!I11=1,'5.Coût activité profession'!$H10,0)","v":0}]
["Analyser/décrypter la demande complexe en équipe ",{"$f":"IF('3.Activités par prestation'!B12=1,'5.Coût activité profession'!$H11,0)","v":0},{"$f":"IF('3.Activités par prestation'!C12=1,'5.Coût activité profession'!$H11,0)","v":0},{"$f":"IF('3.Activités par prestation'!D12=1,'5.Coût activité profession'!$H11,0)","v":0},{"$f":"IF('3.Activités par prestation'!E12=1,'5.Coût activité profession'!$H11,0)","v":172.77711350695589},{"$f":"IF('3.Activités par prestation'!F12=1,'5.Coût activité profession'!$H11,0)","v":172.77711350695589},{"$f":"IF('3.Activités par prestation'!G12=1,'5.Coût activité profession'!$H11,0)","v":172.77711350695589},{"$f":"IF('3.Activités par prestation'!H12=1,'5.Coût activité profession'!$H11,0)","v":0},{"$f":"IF('3.Activités par prestation'!I12=1,'5.Coût activité profession'!$H11,0)","v":172.77711350695589}]
["Formuler une proposition par téléphone / mail auprès du requérant  / Tracer la réponse",{"$f":"IF('3.Activités par prestation'!B13=1,'5.Coût activité profession'!$H12,0)","v":0},{"$f":"IF('3.Activités par prestation'!C13=1,'5.Coût activité profession'!$H12,0)","v":9.8005247023142363},{"$f":"IF('3.Activités par prestation'!D13=1,'5.Coût activité profession'!$H12,0)","v":0},{"$f":"IF('3.Activités par prestation'!E13=1,'5.Coût activité profession'!$H12,0)","v":9.8005247023142363},{"$f":"IF('3.Activités par prestation'!F13=1,'5.Coût activité profession'!$H12,0)","v":9.8005247023142363},{"$f":"IF('3.Activités par prestation'!G13=1,'5.Coût activité profession'!$H12,0)","v":9.8005247023142363},{"$f":"IF('3.Activités par prestation'!H13=1,'5.Coût activité profession'!$H12,0)","v":0},{"$f":"IF('3.Activités par prestation'!I13=1,'5.Coût activité profession'!$H12,0)","v":9.8005247023142363}]
["Planifier l'intervention : professionnels intervenants et calendrier ",{"$f":"IF('3.Activités par prestation'!B14=1,'5.Coût activité profession'!$H13,0)","v":0},{"$f":"IF('3.Activités par prestation'!C14=1,'5.Coût activité profession'!$H13,0)","v":8.2131133381683927},{"$f":"IF('3.Activités par prestation'!D14=1,'5.Coût activité profession'!$H13,0)","v":0},{"$f":"IF('3.Activités par prestation'!E14=1,'5.Coût activité profession'!$H13,0)","v":8.2131133381683927},{"$f":"IF('3.Activités par prestation'!F14=1,'5.Coût activité profession'!$H13,0)","v":8.2131133381683927},{"$f":"IF('3.Activités par prestation'!G14=1,'5.Coût activité profession'!$H13,0)","v":8.2131133381683927},{"$f":"IF('3.Activités par prestation'!H14=1,'5.Coût activité profession'!$H13,0)","v":0},{"$f":"IF('3.Activités par prestation'!I14=1,'5.Coût activité profession'!$H13,0)","v":0}]
["Formaliser le programme d’intervention",{"$f":"IF('3.Activités par prestation'!B15=1,'5.Coût activité profession'!$H14,0)","v":0},{"$f":"IF('3.Activités par prestation'!C15=1,'5.Coût activité profession'!$H14,0)","v":24.63934001450518},{"$f":"IF('3.Activités par prestation'!D15=1,'5.Coût activité profession'!$H14,0)","v":0},{"$f":"IF('3.Activités par prestation'!E15=1,'5.Coût activité profession'!$H14,0)","v":24.63934001450518},{"$f":"IF('3.Activités par prestation'!F15=1,'5.Coût activité profession'!$H14,0)","v":24.63934001450518},{"$f":"IF('3.Activités par prestation'!G15=1,'5.Coût activité profession'!$H14,0)","v":24.63934001450518},{"$f":"IF('3.Activités par prestation'!H15=1,'5.Coût activité profession'!$H14,0)","v":0},{"$f":"IF('3.Activités par prestation'!I15=1,'5.Coût activité profession'!$H14,0)","v":0}]
["Faire valider le programme d’intervention par le requérant ",{"$f":"IF('3.Activités par prestation'!B16=1,'5.Coût activité profession'!$H15,0)","v":0},{"$f":"IF('3.Activités par prestation'!C16=1,'5.Coût activité profession'!$H15,0)","v":6.3496454565833718},{"$f":"IF('3.Activités par prestation'!D16=1,'5.Coût activité profession'!$H15,0)","v":0},{"$f":"IF('3.Activités par prestation'!E16=1,'5.Coût activité profession'!$H15,0)","v":6.3496454565833718},{"$f":"IF('3.Activités par prestation'!F16=1,'5.Coût activité profession'!$H15,0)","v":6.3496454565833718},{"$f":"IF('3.Activités par prestation'!G16=1,'5.Coût activité profession'!$H15,0)","v":6.3496454565833718},{"$f":"IF('3.Activités par prestation'!H16=1,'5.Coût activité profession'!$H15,0)","v":0},{"$f":"IF('3.Activités par prestation'!I16=1,'5.Coût activité profession'!$H15,0)","v":0}]
["Rédiger une convention d’intervention",{"$f":"IF('3.Activités par prestation'!B17=1,'5.Coût activité profession'!$H16,0)","v":0},{"$f":"IF('3.Activités par prestation'!C17=1,'5.Coût activité profession'!$H16,0)","v":34.163808199380242},{"$f":"IF('3.Activités par prestation'!D17=1,'5.Coût activité profession'!$H16,0)","v":0},{"$f":"IF('3.Activités par prestation'!E17=1,'5.Coût activité profession'!$H16,0)","v":34.163808199380242},{"$f":"IF('3.Activités par prestation'!F17=1,'5.Coût activité profession'!$H16,0)","v":34.163808199380242},{"$f":"IF('3.Activités par prestation'!G17=1,'5.Coût activité profession'!$H16,0)","v":34.163808199380242},{"$f":"IF('3.Activités par prestation'!H17=1,'5.Coût activité profession'!$H16,0)","v":0},{"$f":"IF('3.Activités par prestation'!I17=1,'5.Coût activité profession'!$H16,0)","v":34.163808199380242}]
["Préparer l’accueil de la personne (emploi du temps, service…)",{"$f":"IF('3.Activités par prestation'!B18=1,'5.Coût activité profession'!$H17,0)","v":0},{"$f":"IF('3.Activités par prestation'!C18=1,'5.Coût activité profession'!$H17,0)","v":0},{"$f":"IF('3.Activités par prestation'!D18=1,'5.Coût activité profession'!$H17,0)","v":0},{"$f":"IF('3.Activités par prestation'!E18=1,'5.Coût activité profession'!$H17,0)","v":0},{"$f":"IF('3.Activités par prestation'!F18=1,'5.Coût activité profession'!$H17,0)","v":0},{"$f":"IF('3.Activités par prestation'!G18=1,'5.Coût activité profession'!$H17,0)","v":0},{"$f":"IF('3.Activités par prestation'!H18=1,'5.Coût activité profession'!$H17,0)","v":0},{"$f":"IF('3.Activités par prestation'!I18=1,'5.Coût activité profession'!$H17,0)","v":0}]
["Préparer l'intervention (logistique, supports, outils…)",{"$f":"IF('3.Activités par prestation'!B19=1,'5.Coût activité profession'!$H18,0)","v":0},{"$f":"IF('3.Activités par prestation'!C19=1,'5.Coût activité profession'!$H18,0)","v":0},{"$f":"IF('3.Activités par prestation'!D19=1,'5.Coût activité profession'!$H18,0)","v":0},{"$f":"IF('3.Activités par prestation'!E19=1,'5.Coût activité profession'!$H18,0)","v":62.895507724225844},{"$f":"IF('3.Activités par prestation'!F19=1,'5.Coût activité profession'!$H18,0)","v":62.895507724225844},{"$f":"IF('3.Activités par prestation'!G19=1,'5.Coût activité profession'!$H18,0)","v":62.895507724225844},{"$f":"IF('3.Activités par prestation'!H19=1,'5.Coût activité profession'!$H18,0)","v":0},{"$f":"IF('3.Activités par prestation'!I19=1,'5.Coût activité profession'!$H18,0)","v":62.895507724225844}]
["Transmettre la demande à l’organisme de formation en capacité d’assurer / de porter la formation. ",{"$f":"IF('3.Activités par prestation'!B20=1,'5.Coût activité profession'!$H19,0)","v":0},{"$f":"IF('3.Activités par prestation'!C20=1,'5.Coût activité profession'!$H19,0)","v":0},{"$f":"IF('3.Activités par prestation'!D20=1,'5.Coût activité profession'!$H19,0)","v":21.188460768774313},{"$f":"IF('3.Activités par prestation'!E20=1,'5.Coût activité profession'!$H19,0)","v":0},{"$f":"IF('3.Activités par prestation'!F20=1,'5.Coût activité profession'!$H19,0)","v":0},{"$f":"IF('3.Activités par prestation'!G20=1,'5.Coût activité profession'!$H19,0)","v":0},{"$f":"IF('3.Activités par prestation'!H20=1,'5.Coût activité profession'!$H19,0)","v":0},{"$f":"IF('3.Activités par prestation'!I20=1,'5.Coût activité profession'!$H19,0)","v":0}]
["Déterminer avec l'Organisme de formation porteur les modalités de partenariat (délégation, mise à disposition d'intervenants)",{"$f":"IF('3.Activités par prestation'!B21=1,'5.Coût activité profession'!$H20,0)","v":0},{"$f":"IF('3.Activités par prestation'!C21=1,'5.Coût activité profession'!$H20,0)","v":0},{"$f":"IF('3.Activités par prestation'!D21=1,'5.Coût activité profession'!$H20,0)","v":16.426226676336785},{"$f":"IF('3.Activités par prestation'!E21=1,'5.Coût activité profession'!$H20,0)","v":0},{"$f":"IF('3.Activités par prestation'!F21=1,'5.Coût activité profession'!$H20,0)","v":0},{"$f":"IF('3.Activités par prestation'!G21=1,'5.Coût activité profession'!$H20,0)","v":0},{"$f":"IF('3.Activités par prestation'!H21=1,'5.Coût activité profession'!$H20,0)","v":0},{"$f":"IF('3.Activités par prestation'!I21=1,'5.Coût activité profession'!$H20,0)","v":0}]
["S'assurer de la réalisation de l'action de formation par l'Organisme de formation sollicité ",{"$f":"IF('3.Activités par prestation'!B22=1,'5.Coût activité profession'!$H21,0)","v":0},{"$f":"IF('3.Activités par prestation'!C22=1,'5.Coût activité profession'!$H21,0)","v":0},{"$f":"IF('3.Activités par prestation'!D22=1,'5.Coût activité profession'!$H21,0)","v":9.5244681848750581},{"$f":"IF('3.Activités par prestation'!E22=1,'5.Coût activité profession'!$H21,0)","v":0},{"$f":"IF('3.Activités par prestation'!F22=1,'5.Coût activité profession'!$H21,0)","v":0},{"$f":"IF('3.Activités par prestation'!G22=1,'5.Coût activité profession'!$H21,0)","v":0},{"$f":"IF('3.Activités par prestation'!H22=1,'5.Coût activité profession'!$H21,0)","v":0},{"$f":"IF('3.Activités par prestation'!I22=1,'5.Coût activité profession'!$H21,0)","v":0}]
["Animer/Délivrer la prestation de sensibilisation",{"$f":"IF('3.Activités par prestation'!B23=1,'5.Coût activité profession'!$H22,0)","v":0},{"$f":"IF('3.Activités par prestation'!C23=1,'5.Coût activité profession'!$H22,0)","v":103.88937988000264},{"$f":"IF('3.Activités par prestation'!D23=1,'5.Coût activité profession'!$H22,0)","v":0},{"$f":"IF('3.Activités par prestation'!E23=1,'5.Coût activité profession'!$H22,0)","v":0},{"$f":"IF('3.Activités par prestation'!F23=1,'5.Coût activité profession'!$H22,0)","v":0},{"$f":"IF('3.Activités par prestation'!G23=1,'5.Coût activité profession'!$H22,0)","v":0},{"$f":"IF('3.Activités par prestation'!H23=1,'5.Coût activité profession'!$H22,0)","v":0},{"$f":"IF('3.Activités par prestation'!I23=1,'5.Coût activité profession'!$H22,0)","v":0}]
["Animer/Délivrer la prestation d'appui aux pratiques",{"$f":"IF('3.Activités par prestation'!B24=1,'5.Coût activité profession'!$H23,0)","v":0},{"$f":"IF('3.Activités par prestation'!C24=1,'5.Coût activité profession'!$H23,0)","v":0},{"$f":"IF('3.Activités par prestation'!D24=1,'5.Coût activité profession'!$H23,0)","v":0},{"$f":"IF('3.Activités par prestation'!E24=1,'5.Coût activité profession'!$H23,0)","v":0},{"$f":"IF('3.Activités par prestation'!F24=1,'5.Coût activité profession'!$H23,0)","v":103.88937988000264},{"$f":"IF('3.Activités par prestation'!G24=1,'5.Coût activité profession'!$H23,0)","v":0},{"$f":"IF('3.Activités par prestation'!H24=1,'5.Coût activité profession'!$H23,0)","v":0},{"$f":"IF('3.Activités par prestation'!I24=1,'5.Coût activité profession'!$H23,0)","v":0}]
["Animer/Délivrer la prestation d'appui-conseil",{"$f":"IF('3.Activités par prestation'!B25=1,'5.Coût activité profession'!$H24,0)","v":0},{"$f":"IF('3.Activités par prestation'!C25=1,'5.Coût activité profession'!$H24,0)","v":0},{"$f":"IF('3.Activités par prestation'!D25=1,'5.Coût activité profession'!$H24,0)","v":0},{"$f":"IF('3.Activités par prestation'!E25=1,'5.Coût activité profession'!$H24,0)","v":0},{"$f":"IF('3.Activités par prestation'!F25=1,'5.Coût activité profession'!$H24,0)","v":0},{"$f":"IF('3.Activités par prestation'!G25=1,'5.Coût activité profession'!$H24,0)","v":103.88937988000264},{"$f":"IF('3.Activités par prestation'!H25=1,'5.Coût activité profession'!$H24,0)","v":0},{"$f":"IF('3.Activités par prestation'!I25=1,'5.Coût activité profession'!$H24,0)","v":0}]
["Animer/Délivrer la prestation de formation",{"$f":"IF('3.Activités par prestation'!B26=1,'5.Coût activité profession'!$H25,0)","v":0},{"$f":"IF('3.Activités par prestation'!C26=1,'5.Coût activité profession'!$H25,0)","v":0},{"$f":"IF('3.Activités par prestation'!D26=1,'5.Coût activité profession'!$H25,0)","v":0},{"$f":"IF('3.Activités par prestation'!E26=1,'5.Coût activité profession'!$H25,0)","v":363.61282958000925},{"$f":"IF('3.Activités par prestation'!F26=1,'5.Coût activité profession'!$H25,0)","v":0},{"$f":"IF('3.Activités par prestation'!G26=1,'5.Coût activité profession'!$H25,0)","v":0},{"$f":"IF('3.Activités par prestation'!H26=1,'5.Coût activité profession'!$H25,0)","v":0},{"$f":"IF('3.Activités par prestation'!I26=1,'5.Coût activité profession'!$H25,0)","v":0}]
["Animer/Délivrer la prestation d'observation",{"$f":"IF('3.Activités par prestation'!B27=1,'5.Coût activité profession'!$H26,0)","v":0},{"$f":"IF('3.Activités par prestation'!C27=1,'5.Coût activité profession'!$H26,0)","v":0},{"$f":"IF('3.Activités par prestation'!D27=1,'5.Coût activité profession'!$H26,0)","v":0},{"$f":"IF('3.Activités par prestation'!E27=1,'5.Coût activité profession'!$H26,0)","v":0},{"$f":"IF('3.Activités par prestation'!F27=1,'5.Coût activité profession'!$H26,0)","v":0},{"$f":"IF('3.Activités par prestation'!G27=1,'5.Coût activité profession'!$H26,0)","v":0},{"$f":"IF('3.Activités par prestation'!H27=1,'5.Coût activité profession'!$H26,0)","v":0},{"$f":"IF('3.Activités par prestation'!I27=1,'5.Coût activité profession'!$H26,0)","v":155.83406982000395}]
["Rédiger un bilan, une synthèse de l'évaluation pluridisciplinaire  ",{"$f":"IF('3.Activités par prestation'!B28=1,'5.Coût activité profession'!$H27,0)","v":0},{"$f":"IF('3.Activités par prestation'!C28=1,'5.Coût activité profession'!$H27,0)","v":0},{"$f":"IF('3.Activités par prestation'!D28=1,'5.Coût activité profession'!$H27,0)","v":0},{"$f":"IF('3.Activités par prestation'!E28=1,'5.Coût activité profession'!$H27,0)","v":0},{"$f":"IF('3.Activités par prestation'!F28=1,'5.Coût activité profession'!$H27,0)","v":0},{"$f":"IF('3.Activités par prestation'!G28=1,'5.Coût activité profession'!$H27,0)","v":0},{"$f":"IF('3.Activités par prestation'!H28=1,'5.Coût activité profession'!$H27,0)","v":0},{"$f":"IF('3.Activités par prestation'!I28=1,'5.Coût activité profession'!$H27,0)","v":202.80840253708709}]
["Formaliser des préconisations ",{"$f":"IF('3.Activités par prestation'!B29=1,'5.Coût activité profession'!$H28,0)","v":0},{"$f":"IF('3.Activités par prestation'!C29=1,'5.Coût activité profession'!$H28,0)","v":0},{"$f":"IF('3.Activités par prestation'!D29=1,'5.Coût activité profession'!$H28,0)","v":0},{"$f":"IF('3.Activités par prestation'!E29=1,'5.Coût activité profession'!$H28,0)","v":0},{"$f":"IF('3.Activités par prestation'!F29=1,'5.Coût activité profession'!$H28,0)","v":0},{"$f":"IF('3.Activités par prestation'!G29=1,'5.Coût activité profession'!$H28,0)","v":55.384744131337769},{"$f":"IF('3.Activités par prestation'!H29=1,'5.Coût activité profession'!$H28,0)","v":55.384744131337769},{"$f":"IF('3.Activités par prestation'!I29=1,'5.Coût activité profession'!$H28,0)","v":55.384744131337769}]
["Évaluer la prestation \"à chaud\" ",{"$f":"IF('3.Activités par prestation'!B30=1,'5.Coût activité profession'!$H29,0)","v":0},{"$f":"IF('3.Activités par prestation'!C30=1,'5.Coût activité profession'!$H29,0)","v":16.426226676336785},{"$f":"IF('3.Activités par prestation'!D30=1,'5.Coût activité profession'!$H29,0)","v":0},{"$f":"IF('3.Activités par prestation'!E30=1,'5.Coût activité profession'!$H29,0)","v":0},{"$f":"IF('3.Activités par prestation'!F30=1,'5.Coût activité profession'!$H29,0)","v":0},{"$f":"IF('3.Activités par prestation'!G30=1,'5.Coût activité profession'!$H29,0)","v":16.426226676336785},{"$f":"IF('3.Activités par prestation'!H30=1,'5.Coût activité profession'!$H29,0)","v":0},{"$f":"IF('3.Activités par prestation'!I30=1,'5.Coût activité profession'!$H29,0)","v":16.426226676336785}]
["Évaluer un suivi de l'intervention à 3 / 6 mois",{"$f":"IF('3.Activités par prestation'!B31=1,'5.Coût activité profession'!$H30,0)","v":0},{"$f":"IF('3.Activités par prestation'!C31=1,'5.Coût activité profession'!$H30,0)","v":0},{"$f":"IF('3.Activités par prestation'!D31=1,'5.Coût activité profession'!$H30,0)","v":49.27868002901036},{"$f":"IF('3.Activités par prestation'!E31=1,'5.Coût activité profession'!$H30,0)","v":49.27868002901036},{"$f":"IF('3.Activités par prestation'!F31=1,'5.Coût activité profession'!$H30,0)","v":49.27868002901036},{"$f":"IF('3.Activités par prestation'!G31=1,'5.Coût activité profession'!$H30,0)","v":49.27868002901036},{"$f":"IF('3.Activités par prestation'!H31=1,'5.Coût activité profession'!$H30,0)","v":49.27868002901036},{"$f":"IF('3.Activités par prestation'!I31=1,'5.Coût activité profession'!$H30,0)","v":49.27868002901036}]
["Suivre l'activité RH et budgétaire de façon analytique ",{"$f":"IF('3.Activités par prestation'!B32=1,'5.Coût activité profession'!$H31,0)","v":0},{"$f":"IF('3.Activités par prestation'!C32=1,'5.Coût activité profession'!$H31,0)","v":19.048936369750116},{"$f":"IF('3.Activités par prestation'!D32=1,'5.Coût activité profession'!$H31,0)","v":19.048936369750116},{"$f":"IF('3.Activités par prestation'!E32=1,'5.Coût activité profession'!$H31,0)","v":19.048936369750116},{"$f":"IF('3.Activités par prestation'!F32=1,'5.Coût activité profession'!$H31,0)","v":19.048936369750116},{"$f":"IF('3.Activités par prestation'!G32=1,'5.Coût activité profession'!$H31,0)","v":19.048936369750116},{"$f":"IF('3.Activités par prestation'!H32=1,'5.Coût activité profession'!$H31,0)","v":19.048936369750116},{"$f":"IF('3.Activités par prestation'!I32=1,'5.Coût activité profession'!$H31,0)","v":19.048936369750116}]
["Coût de la prestation",{"$f":"SUM(B5:B32)","v":12.975347430605922},{"$f":"SUM(C5:C32)","v":300.06815239401334},167.92027478604868,803.23300167820503,543.50955197819837,615.32052278587298,176.1658632874003,830.87151645370443]

{"sheet":"8.ETP par prestation","index":8,"n_rows":10,"n_cols":9,"rows_kept":10,"cut":false,"hidden":false,"merged":[[0,0,0,8],[2,6,3,6],[2,7,2,8],[2,0,3,0],[2,1,3,1],[2,2,3,2],[2,3,2,4],[2,5,3,5]]}
["ETP de personnel nécessités par chaque prestation"]
[]
[null,"Information Documentation","Sensibilisation","Formation ",null,"Appui aux pratiques","Appui-conseil","Observation-évaluation partagée"]
[null,null,null,"Cas 1 \nESMS NON OF ","Cas 2 \nESMS OF",null,null,"Cas 1 \n Sous forme d'accueil temporaire ","Cas 2\nAu sein de l'ESMS requérant "]
["Educateur",{"$f":"SUMPRODUCT('3.Activités par prestation'!B$5:B$32,'6.ETP par activité'!$B4:$B31)","v":0},{"$f":"SUMPRODUCT('3.Activités par prestation'!C$5:C$32,'6.ETP par activité'!$B4:$B31)","v":1.3482679941920763E-3},{"$f":"SUMPRODUCT('3.Activités par prestation'!D$5:D$32,'6.ETP par activité'!$B4:$B31)","v":0},{"$f":"SUMPRODUCT('3.Activités par prestation'!E$5:E$32,'6.ETP par activité'!$B4:$B31)","v":5.4449284380833855E-3},{"$f":"SUMPRODUCT('3.Activités par prestation'!F$5:F$32,'6.ETP par activité'!$B4:$B31)","v":2.3335407591785935E-3},{"$f":"SUMPRODUCT('3.Activités par prestation'!G$5:G$32,'6.ETP par activité'!$B4:$B31)","v":2.8002489110143121E-3},{"$f":"SUMPRODUCT('3.Activités par prestation'!H$5:H$32,'6.ETP par activité'!$B4:$B31)","v":4.6670815183571873E-4},{"$f":"SUMPRODUCT('3.Activités par prestation'!I$5:I$32,'6.ETP par activité'!$B4:$B31)","v":4.0448039825762292E-3}]
["Infirmière",{"$f":"SUMPRODUCT('3.Activités par prestation'!B$5:B$32,'6.ETP par activité'!$C4:$C31)","v":0},{"$f":"SUMPRODUCT('3.Activités par prestation'!C$5:C$32,'6.ETP par activité'!$C4:$C31)","v":1.3482679941920763E-3},{"$f":"SUMPRODUCT('3.Activités par prestation'!D$5:D$32,'6.ETP par activité'!$C4:$C31)","v":0},{"$f":"SUMPRODUCT('3.Activités par prestation'!E$5:E$32,'6.ETP par activité'!$C4:$C31)","v":5.4449284380833855E-3},{"$f":"SUMPRODUCT('3.Activités par prestation'!F$5:F$32,'6.ETP par activité'!$C4:$C31)","v":2.3335407591785935E-3},{"$f":"SUMPRODUCT('3.Activités par prestation'!G$5:G$32,'6.ETP par activité'!$C4:$C31)","v":2.8002489110143121E-3},{"$f":"SUMPRODUCT('3.Activités par prestation'!H$5:H$32,'6.ETP par activité'!$C4:$C31)","v":4.6670815183571873E-4},{"$f":"SUMPRODUCT('3.Activités par prestation'!I$5:I$32,'6.ETP par activité'!$C4:$C31)","v":4.0448039825762292E-3}]
["Médecin spécialisé",{"$f":"SUMPRODUCT('3.Activités par prestation'!B$5:B$32,'6.ETP par activité'!$D4:$D31)","v":0},{"$f":"SUMPRODUCT('3.Activités par prestation'!C$5:C$32,'6.ETP par activité'!$D4:$D31)","v":0},{"$f":"SUMPRODUCT('3.Activités par prestation'!D$5:D$32,'6.ETP par activité'!$D4:$D31)","v":0},{"$f":"SUMPRODUCT('3.Activités par prestation'!E$5:E$32,'6.ETP par activité'!$D4:$D31)","v":4.6670815183571873E-4},{"$f":"SUMPRODUCT('3.Activités par prestation'!F$5:F$32,'6.ETP par activité'!$D4:$D31)","v":4.6670815183571873E-4},{"$f":"SUMPRODUCT('3.Activités par prestation'!G$5:G$32,'6.ETP par activité'!$D4:$D31)","v":4.6670815183571873E-4},{"$f":"SUMPRODUCT('3.Activités par prestation'!H$5:H$32,'6.ETP par activité'!$D4:$D31)","v":0},{"$f":"SUMPRODUCT('3.Activités par prestation'!I$5:I$32,'6.ETP par activité'!$D4:$D31)","v":1.0889856876166769E-3}]
["Psychologue",{"$f":"SUMPRODUCT('3.Activités par prestation'!B$5:B$32,'6.ETP par activité'!$E4:$E31)","v":0},{"$f":"SUMPRODUCT('3.Activités par prestation'!C$5:C$32,'6.ETP par activité'!$E4:$E31)","v":0},{"$f":"SUMPRODUCT('3.Activités par prestation'!D$5:D$32,'6.ETP par activité'!$E4:$E31)","v":0},{"$f":"SUMPRODUCT('3.Activités par prestation'!E$5:E$32,'6.ETP par activité'!$E4:$E31)","v":4.6670815183571873E-4},{"$f":"SUMPRODUCT('3.Activités par prestation'!F$5:F$32,'6.ETP par activité'!$E4:$E31)","v":4.6670815183571873E-4},{"$f":"SUMPRODUCT('3.Activités par prestation'!G$5:G$32,'6.ETP par activité'!$E4:$E31)","v":4.6670815183571873E-4},{"$f":"SUMPRODUCT('3.Activités par prestation'!H$5:H$32,'6.ETP par activité'!$E4:$E31)","v":0},{"$f":"SUMPRODUCT('3.Activités par prestation'!I$5:I$32,'6.ETP par activité'!$E4:$E31)","v":1.0889856876166769E-3}]
["Référent FR",{"$f":"SUMPRODUCT('3.Activités par prestation'!B$5:B$32,'6.ETP par activité'!$F4:$F31)","v":1.5556938394523958E-4},{"$f":"SUMPRODUCT('3.Activités par prestation'!C$5:C$32,'6.ETP par activité'!$F4:$F31)","v":2.8002489110143126E-3},{"$f":"SUMPRODUCT('3.Activités par prestation'!D$5:D$32,'6.ETP par activité'!$F4:$F31)","v":2.4891101431238332E-3},{"$f":"SUMPRODUCT('3.Activités par prestation'!E$5:E$32,'6.ETP par activité'!$F4:$F31)","v":4.2522298278365482E-3},{"$f":"SUMPRODUCT('3.Activités par prestation'!F$5:F$32,'6.ETP par activité'!$F4:$F31)","v":4.2522298278365482E-3},{"$f":"SUMPRODUCT('3.Activités par prestation'!G$5:G$32,'6.ETP par activité'!$F4:$F31)","v":4.8745073636175069E-3},{"$f":"SUMPRODUCT('3.Activités par prestation'!H$5:H$32,'6.ETP par activité'!$F4:$F31)","v":2.1779713752333538E-3},{"$f":"SUMPRODUCT('3.Activités par prestation'!I$5:I$32,'6.ETP par activité'!$F4:$F31)","v":4.8745073636175069E-3}]
["Administratif",{"$f":"SUMPRODUCT('3.Activités par prestation'!B$5:B$32,'6.ETP par activité'!$G4:$G31)","v":1.5556938394523958E-4},{"$f":"SUMPRODUCT('3.Activités par prestation'!C$5:C$32,'6.ETP par activité'!$G4:$G31)","v":1.2964115328769964E-3},{"$f":"SUMPRODUCT('3.Activités par prestation'!D$5:D$32,'6.ETP par activité'!$G4:$G31)","v":1.1926986102468369E-3},{"$f":"SUMPRODUCT('3.Activités par prestation'!E$5:E$32,'6.ETP par activité'!$G4:$G31)","v":1.4001244555071563E-3},{"$f":"SUMPRODUCT('3.Activités par prestation'!F$5:F$32,'6.ETP par activité'!$G4:$G31)","v":1.4001244555071563E-3},{"$f":"SUMPRODUCT('3.Activités par prestation'!G$5:G$32,'6.ETP par activité'!$G4:$G31)","v":1.4001244555071563E-3},{"$f":"SUMPRODUCT('3.Activités par prestation'!H$5:H$32,'6.ETP par activité'!$G4:$G31)","v":7.2599045841111802E-4},{"$f":"SUMPRODUCT('3.Activités par prestation'!I$5:I$32,'6.ETP par activité'!$G4:$G31)","v":1.5038373781373158E-3}]

{"sheet":"9.Valorisation financière","index":9,"n_rows":12,"n_cols":6,"rows_kept":12,"cut":false,"hidden":false,"merged":[[0,0,0,5],[9,0,10,0],[2,0,2,1],[3,0,3,1],[4,0,4,1],[7,0,7,1],[8,0,8,1]]}
["Coût direct de votre panier de prestations"]
[]
["Les prestations fonction ressource",null,"Unité d'œuvre","Objectif","Coûts directs hors transports","Coûts complets"]
["Information Documentation",null,"Demande d'information",{"$f":"'1. Vos objectifs'!D4","v":110},{"$f":"D4*'7.Coûts par prestation'!B33","v":1427.2882173666515},{"$f":"E4*100/70","v":2038.9831676666449}]
["Sensibilisation",null,"Séance",{"$f":"'1. Vos objectifs'!D5","v":17},{"$f":"D5*'7.Coûts par prestation'!C33","v":5101.1585906982264},{"$f":"E5*100/70","v":7287.3694152831804}]
["Formation ","Cas 1 \nESMS NON OF ","La demande de formation sous-traitée",{"$f":"'1. Vos objectifs'!D6","v":3},{"$f":"D6*'7.Coûts par prestation'!D33","v":503.76082435814601},719.65832051163716]
["Formation ","Cas 2 \nESMS OF","Séance",{"$f":"'1. Vos objectifs'!D7","v":1},{"$f":"D7*'7.Coûts par prestation'!E33","v":803.23300167820503},1147.47571668315]
["Appui aux pratiques",null,"Séance",{"$f":"'1. Vos objectifs'!D8","v":30},{"$f":"D8*'7.Coûts par prestation'!F33","v":16305.286559345952},23293.266513351362]
["Appui-conseil",null,"Séance",{"$f":"'1. Vos objectifs'!D9","v":18},{"$f":"D9*'7.Coûts par prestation'!G33","v":11075.769410145713},15822.527728779591]
["Observation-évaluation partagée","Cas 1 \n Sous forme d'accueil temporaire ","Journée d'accueil temporaire",{"$f":"'1. Vos objectifs'!D10","v":10},{"$f":"D10*'7.Coûts par prestation'!H33","v":1761.6586328740029},2516.6551898200041]
[null,"Cas 2\nAu sein de l'ESMS requérant ","Session",{"$f":"'1. Vos objectifs'!D11","v":0},{"$f":"D11*'7.Coûts par prestation'!I33","v":0},0]
["Total",null,null,null,{"$f":"SUM(E4:E11)","v":36978.155236466897},{"$f":"SUM(F4:F11)","v":52825.936052095567}]

{"sheet":"10.Valorisation en ETP","index":10,"n_rows":13,"n_cols":10,"rows_kept":13,"cut":false,"hidden":false,"merged":[[0,0,0,9],[10,0,11,0],[2,4,2,9],[4,0,4,1],[5,0,5,1],[6,0,7,0],[8,0,8,1],[9,0,9,1],[2,0,3,1],[2,2,3,2],[2,3,3,3]]}
["ETP de personnel nécessités par votre panier de prestations"]
[]
["Les prestations fonction ressource",null,"Unité d'œuvre","Objectif","ETP requis"]
[null,null,null,null,"Educateur","Infirmière","Médecin spécialisé","Psychologue","Référent FR","Administratif"]
["Information Documentation",null,"Demande d'information",{"$f":"'1. Vos objectifs'!D4","v":110},{"$f":"$D5*'8.ETP par prestation'!B5","v":0},{"$f":"$D5*'8.ETP par prestation'!B$6","v":0},{"$f":"$D5*'8.ETP par prestation'!B$7","v":0},{"$f":"$D5*'8.ETP par prestation'!B$8","v":0},{"$f":"$D5*'8.ETP par prestation'!B$9","v":1.7112632233976355E-2},{"$f":"$D5*'8.ETP par prestation'!B$10","v":1.7112632233976355E-2}]
["Sensibilisation",null,"Séance",{"$f":"'1. Vos objectifs'!D5","v":17},{"$f":"$D6*'8.ETP par prestation'!C5","v":2.2920555901265297E-2},{"$f":"$D6*'8.ETP par prestation'!C$6","v":2.2920555901265297E-2},{"$f":"$D6*'8.ETP par prestation'!C$7","v":0},{"$f":"$D6*'8.ETP par prestation'!C$8","v":0},{"$f":"$D6*'8.ETP par prestation'!C$9","v":4.7604231487243312E-2},{"$f":"$D6*'8.ETP par prestation'!C$10","v":2.2038996058908938E-2}]
["Formation ","Cas 1 \nESMS \nNON OF ","La demande de formation sous-traitée",{"$f":"'1. Vos objectifs'!D6","v":3},{"$f":"$D7*'8.ETP par prestation'!D5","v":0},{"$f":"$D7*'8.ETP par prestation'!D$6","v":0},{"$f":"$D7*'8.ETP par prestation'!D$7","v":0},{"$f":"$D7*'8.ETP par prestation'!D$8","v":0},{"$f":"$D7*'8.ETP par prestation'!D$9","v":7.4673304293714996E-3},{"$f":"$D7*'8.ETP par prestation'!D$10","v":3.5780958307405106E-3}]
[null,"Cas 2 \nESMS OF","Séance",{"$f":"'1. Vos objectifs'!D7","v":1},{"$f":"$D8*'8.ETP par prestation'!E5","v":5.4449284380833855E-3},{"$f":"$D8*'8.ETP par prestation'!E$6","v":5.4449284380833855E-3},{"$f":"$D8*'8.ETP par prestation'!E$7","v":4.6670815183571873E-4},{"$f":"$D8*'8.ETP par prestation'!E$8","v":4.6670815183571873E-4},{"$f":"$D8*'8.ETP par prestation'!E$9","v":4.2522298278365482E-3},{"$f":"$D8*'8.ETP par prestation'!E$10","v":1.4001244555071563E-3}]
["Appui aux pratiques",null,"Séance",{"$f":"'1. Vos objectifs'!D8","v":30},{"$f":"$D9*'8.ETP par prestation'!F5","v":7.0006222775357813E-2},{"$f":"$D9*'8.ETP par prestation'!F$6","v":7.0006222775357813E-2},{"$f":"$D9*'8.ETP par prestation'!F$7","v":1.4001244555071561E-2},{"$f":"$D9*'8.ETP par prestation'!F$8","v":1.4001244555071561E-2},{"$f":"$D9*'8.ETP par prestation'!F$9","v":0.12756689483509645},{"$f":"$D9*'8.ETP par prestation'!F$10","v":4.200373366521469E-2}]
["Appui-conseil",null,"Séance",{"$f":"'1. Vos objectifs'!D9","v":18},{"$f":"$D10*'8.ETP par prestation'!G5","v":5.0404480398257616E-2},{"$f":"$D10*'8.ETP par prestation'!G$6","v":5.0404480398257616E-2},{"$f":"$D10*'8.ETP par prestation'!G$7","v":8.4007467330429377E-3},{"$f":"$D10*'8.ETP par prestation'!G$8","v":8.4007467330429377E-3},{"$f":"$D10*'8.ETP par prestation'!G$9","v":8.7741132545115119E-2},{"$f":"$D10*'8.ETP par prestation'!G$10","v":2.5202240199128811E-2}]
["Observation-évaluation partagée","Cas 1 \n Sous forme d'accueil temporaire ","Journée d'accueil temporaire",{"$f":"'1. Vos objectifs'!D10","v":10},{"$f":"$D11*'8.ETP par prestation'!H5","v":4.667081518357187E-3},{"$f":"$D11*'8.ETP par prestation'!H$6","v":4.667081518357187E-3},{"$f":"$D11*'8.ETP par prestation'!H$7","v":0},{"$f":"$D11*'8.ETP par prestation'!H$8","v":0},{"$f":"$D11*'8.ETP par prestation'!H$9","v":2.1779713752333538E-2},{"$f":"$D11*'8.ETP par prestation'!H$10","v":7.2599045841111806E-3}]
[null,"Cas 2\nAu sein de l'ESMS requérant ","Session",{"$f":"'1. Vos objectifs'!D11","v":0},{"$f":"$D12*'8.ETP par prestation'!I5","v":0},{"$f":"$D12*'8.ETP par prestation'!I$6","v":0},{"$f":"$D12*'8.ETP par prestation'!I$7","v":0},{"$f":"$D12*'8.ETP par prestation'!I$8","v":0},{"$f":"$D12*'8.ETP par prestation'!I$9","v":0},{"$f":"$D12*'8.ETP par prestation'!I$10","v":0}]
["Total",null,null,null,{"$f":"SUM(E5:E12)","v":0.1534432690313213},{"$f":"SUM(F5:F12)","v":0.1534432690313213},2.2868699439950218E-2,2.2868699439950218E-2,0.31352416511097286,0.11859572702758764]

{"sheet":"11. Synthèse des coûts","index":11,"n_rows":23,"n_cols":5,"rows_kept":23,"cut":false,"hidden":false,"merged":[[0,0,0,4],[9,0,10,0],[3,0,3,1],[4,0,4,1],[5,0,6,0],[7,0,7,1],[8,0,8,1],[21,0,22,0],[15,0,15,1],[16,0,16,1],[17,0,18,0],[19,0,19,1],[20,0,20,1]]}
["Snthèse des coûts directs et complets par unité de prestation fonction ressource"]
[]
[null,null,"Unité d'œuvre","Coût DIRECT en euros hors transport","Commentaires"]
["Information Documentation",null,"Demande d'information",{"$f":"ROUND('7.Coûts par prestation'!B33,0)","v":13}]
["Sensibilisation",null,"Séance",{"$f":"ROUND('7.Coûts par prestation'!C33,0)","v":300},"En présentiel ou en distantiel"]
["Formation ","Cas 1 \nESMS NON OF ","La demande de formation sous-traitée",{"$f":"ROUND('7.Coûts par prestation'!D33,-1)","v":170},"Depuis la réception de la demande jusqu'au suivi de l'action réalisée par l'OF"]
[null,"\nCas 2 \nESMS OF","Séance",{"$f":"ROUND('7.Coûts par prestation'!E33,-1)","v":800},"Habituellement financé par les fonds de formation professionnelle"]
["Appui aux pratiques",null,"Séance",{"$f":"ROUND('7.Coûts par prestation'!F33,-1)","v":540}]
["Appui-conseil",null,"Séance",{"$f":"ROUND('7.Coûts par prestation'!G33,-1)","v":620}]
["Observation-évaluation partagée","Cas 1 \n Sous forme d'accueil temporaire ","Journée d'accueil temporaire",{"$f":"ROUND('7.Coûts par prestation'!H33,-1)","v":180},"A ajouter au prix de journée de l'établissement"]
[null,"Cas 2\nAu sein de l'ESMS requérant ","Session",{"$f":"ROUND('7.Coûts par prestation'!I33,-1)","v":830}]
[]
[]
[]
[null,null,"Unité d'œuvre","Coût COMPLET en euros hors transport","Commentaires"]
["Information Documentation",null,"Demande d'information",{"$f":"D4*100/70","v":18.571428571428573}]
["Sensibilisation",null,"Séance",{"$f":"D5*100/70","v":428.57142857142856},"En présentiel ou en distantiel"]
["Formation ","Cas 1 \nESMS NON OF ","La demande de formation sous-traitée",242.85714285714286,"Depuis la réception de la demande jusqu'au suivi de l'action réalisée par l'OF"]
[null,"\nCas 2 \nESMS OF","Séance",1142.8571428571429,"Habituellement financé par les fonds de formation professionnelle"]
["Appui aux pratiques",null,"Séance",771.42857142857144]
["Appui-conseil",null,"Séance",885.71428571428567]
["Observation-évaluation partagée","Cas 1 \n Sous forme d'accueil temporaire ","Journée d'accueil temporaire",257.14285714285717,"A ajouter au prix de journée de l'établissement"]
[null,"Cas 2\nAu sein de l'ESMS requérant ","Session",{"$f":"D11*100/70","v":1185.7142857142858}]